Workbook

Sheet Materiales Cuadra
A1: Listado de Precios de Materiales
A3: 1-Elementos de Seguridad e Higiene y Herramnientas
A4: 1.1 Seguridad e Higiene
A5: 1.2 Herramientas
A6: 2-Perforación estudio Suelo
A7: 3-Ensayo de Hormigón
A8: 4-Alquiler de equipos y de movimiento de tierra
A9: 5-Aceros
A10: 5.1 Hierros por barra de 12m
A11: Barra torcionada x 4.2mm
A12: Barra torcionada x 6mm
A13: Barra torcionada x 8mm
A14: Barra torcionada x 10mm
A15: Barra torcionada x 12mm
A16: Barra torcionada x 16mm
A17: Barra torcionada x 20mm
A18: Barra torcionada x 25mm
A19: Barra lisa x 6mm
A20: Barra lisa x 8mm
A21: Barra lisa x 10mm
A22: Barra lisa x 12mm
A23: Barra lisa x 14mm
A24: Barra lisa x 16mm
A25: 5.2 Clavos y Alambres
A26: 5.3 Tejidos para cercos 10m - un -
A27: 5.4 Planchuelas preforadas x 6m
A28: 5.5 Mallas electrosoldadas 6 x 2,15
A29: 5.6 Caños estructurales cuadrados x 6 ml
A30: 5.7 Caños estructurales rectangulares x 6 ml
A31: 5.8 Caños estructurales redondos x 6 ml
A32: 5.9 Planchuelas
A33: 5.10 Hierros T Ángulos y Prefiles
A34: 5.11 Zinguería y Chapas - ml -
A35: Canaleta chapa galv. Nro 27 des. 0,33m
A36: Canaleta chapa galv. Nro 27 des. 0,40m
A37: Canaleta chapa galv. Nro 27 des. 0,50m
A38: Canaleta chapa galv. Nro 24 des. 0,33m
A39: Canaleta chapa galv. Nro 24 des. 0,40m
A40: Canaleta chapa galv. Nro 24 des. 0,50m
A41: Cenefa chapa galv. Nro 30 des. 0,25m
A42: Cumbreras chapa nro 30 des 0,30m
A43: Sombrerete diám. 75mm ch nro 30 - un -
A44: Sombrerete diám. 110 - un -
A45: Embudo redondo diám. 100mm - un -
A46: Babetas chapa galv. Nro 27 des. 0,25m
A47: Babetas chapa galv. Nro 30 des. 0,25m
A48: 5.12 Chapas lisas Galvanizadas - ml -
A49: Nro 2,5 1x2m
A50: Nro 2 1x2m
A51: Nro 1,6 1x2m
A52: Nro 0,9 1x2m
A53: Nro 0,7 1x2m
A54: Nro 0,3 1x2m
A55: 5.13 Metal desplegado 1x3
A56: 5.14 Chapas lisas gruesas laminado en caliente - un -
A57: 5.15 Chapas Negra
A58: 5.15.1 Laminado en frio
A59: 5.15.2 Laminado en caliente
A60: 5.15.3 Estampadas
A61: 5.15.4 Perforadas
A62: 6-Aridos
A63: Arena gruesa - 6 m3
A64: Polvo de cantera con escombros para contrapiso - 5 m3
A65: Isocret bolsa 170 lts.
A66: Piedra partida para enconfrado - 5 m3
A67: Bolsa de Arena
A68: m3 de Arena
A69: Tierra - 6 m3
A70: Ripio Sucio - 6 m3
A71: Leca 0 a 3mm p/contrapisos - m3
A72: Leca 3 a 10mm p/columnas y vigas - m3
A73: Leca 10 a 20mm p/losas y bases - m3
A74: Bolsa de Piedra - 6 m3
A75: m3 de piedra - 6 m3
A76: 7-Cales y Cementos
A77: Cal tipo Andina - 20kg
A78: Cal viva tipo FGH - 25kg
A79: Cemento Portland - 50kg
A80: Cemento de Albañilería - 40kg
A81: Cemento Blanco - 25kg
A82: 8-Hormigón Elaborado
A83: resistencia H17 (170 kg cemento)
A84: resistencia H21 (170 kg cemento)
A85: resistencia H25 (170 kg cemento)
A86: resistencia H35 (170 kg cemento)
A87: Servicio de bombeo hasta 15m
A88: 9-Aditivo para Hormigones
A89: Sika 3 acelerante de frague p/mortero - 20 kg
A90: Sika 3 acelerante de frague p/mortero sin cloruro - 25 kg
A91: Sika Separol maderaDesmoldante p/encofrados de madera - 200 lts
A92: Sika Desmoldante p/encofrados metalicos - 200 lts
A93: Sika grout 212Mortero p/anclaje y nivelación estructuras - 25kg
A94: Sika dur 32gel Adhesivo epoxi p/unir hormigon viejo a nuevo - 5kg
A95: 10-Aislaciones
A96: 10.1 Aislaciones hidrófugas e Impermeabilizantes
A97: Sika 1 Hidrof. Tipo Cerecita x 4kg | C97: =B97/4 -> 0
A98: Sika 1 Hidrof. Tipo Cerecita x 10kg | C98: =B98/10 -> 0
A99: Sika 1 Hidrof. Tipo Cerecita x 20kg | C99: =B99/20 -> 0
A100: Sika 1 Hidrof. - 5kg | C100: =B100/5 -> 0
A101: Sika 1 Hidrof. - 200kg | C101: =B101/200 -> 0
A102: Hidrófugo Promedio /kg
A103: Sika monotop 107 impermeabilizante cementicio listo p/usar - 25kg
A104: Protección hidrorrepelente para fachadas tipo Sika - 20 lts
A105: Sika Guard 70 Impermeabilizante incoloro para ladrillos - 20lts
A106: Sika fill tapagot Sellador incoloro p/goteras y filtraciones - 5lts
A107: Revest. Fibrado impermeable p/techos tipo Sika - 20kg
A108: Techado asfaltico Nro 2 - 20 m2
A109: Fieltro Nro 15 con aluminio - 10 m2
A110: Emulsión asfáltica x 4lts Tipo Megaflex
A111: Pintura Asfáltica - 18lts
A112: Membrana asfáltica 4mm - 10 m2
A113: 10.2 Aislaciones Térmicas e Hirdófugas/b tejas y chapas
A114: alumair doble 30mm - burbuja diám. 30 - 30m2
A115: alumair simple 30mm - burbuja diám. 30 - 30m2
A116: alumair doble 10mm - burbuja diám. 10 - 40m2
A117: alumair simple 10mm - burbuja diám. 10 - 40m2
A118: alumair doble 30mm - burbuja diám. 30 - 60m2 - L. fuego
A119: alumair simple 30mm - burbuja diám. 30 - 60m2 - L. fuego
A120: air tech doble 10mm - burbuja diám. 10 - 30m2
A121: air tech simple 10mm - burbuja diám. 10 - 30m2
A122: isolant TB2 - 2mm
A123: isolant TB5 - 5mm
A124: isolant TBA15 - 15mm
A125: isolant TBA5 - 5mm
A126: isolant TBA10 - 10mm
A127: isolant Doble A - 5mm
A128: isolant Doble A - 10mm
A129: isolant Doble A - 15mm
A130: cinta adhesiva metalizada
A131: cinta aluminizada CTBA 7cm
A132: 10.3 Aislaciones Térmicas e Hirdófugas/b tejas y chapas
A133: lana de vidrio hidrorrepelente p/cubiertas y techos - un
A134: revestida con foil aluminio (18x1,2)m x 50mm
A135: revestida con foil aluminio hilos de vidrio-papel kraft(12x1,2)m x 50mm
A136: revestida con papel kraft platificado (18x1,2)m x 50mm
A137: Espuma de poliuretano 20mm x m2
A146: 10.4 Aislación Ignífuga
A148: 11-Juntas de dilatación
A149: 12-Mampostería
A150: 12.1 Bloques de cemento - un -
A151: Comunes - millar
A152: Comunes vista - millar
A153: Prensados vista - un
A154: tejuelas 0,11cm x 0,225cm x 0,019mm refractaria
A155: De vidrio 0,19 x 0,019 x 0,8 transp. - un
A156: 12.2 Ladrillos - un -
A157: 0,8x18x25 6 tubos
A158: 12x18x25 6 tubos
A159: 18x18x25 9 tubos
A160: 18x18x25 16 tubos portante
A161: 18x18x25 16 U encadenado
A162: 12x18x25 9 tubos
A163: 18x18x33 autoportante columna
A164: 12.3 Cerámicas - un -
A165: Placa de revestimiento 50x25x5 cm
A166: Tabiques interiores 50x25x7,5 cm
A167: Tabiques interiores 50x25x10 cm
A168: Muros portantes ext. 50x25x15
A169: Muros portantes ext. 50x25x20
A170: Dintel 120x25x10
A171: Dintel 120x25x20
A172: Dintel 200x25x20
A173: Bloques U 50x25x15
A174: Bloques U 50x25x20
A175: Escalón 120x25x17,5
A176: Mortero adhesivo retak - 30kg
A177: Mortero fijador de barras retak - 30kg
A178: Reboque fibrado retak - 30kg
A179: 12.4 Bloques celular curado en autoclave H.C.C.A. Sist. Retak - un -
A180: para cielorrasos junta tomada - 8mm - 1,20 x 2,40
A181: para paredes borde rebajado - 10mm - 1,20 x 2,40
A182: para entrepisos borde recto - 15mm - 1,20 x 2,40
A183: para fachadas biseladas 45grados - 10mm - 1,20 x 2,40
A184: 15.5 Placas cementicias - un -
A185: para cielorrasos junta tomada - 8mm - 1,20 x 2,40
A186: para paredes borde rebajado - 10mm - 1,20 x 2,40
A187: para entrepisos borde recto - 15mm - 1,20 x 2,40
A188: para fachadas biseladas 45grados - 10mm - 1,20 x 2,40
A189: 13-Prefabricados de hormigón
A190: 13.1 Viguetones Pretensados - tipo Vipret - un -
A191: 13.2 Losas pretensadas ultralivianadas y aislantes - m2 -
A192: 13.3 premoldeados
A193: 13.4 tensolite
A194: 14-Cielorrasos y tabiques
A195: 14.1 Placas de yeso tipl knauf durlok - un -
A196: 14.2 Sist.PVC chapa galv. Natural reforz.c/col - m2 -
A197: 15-Bloques para losas - cerámicos y telgopor - un -
A198: 16-Adhesivos
A199: 16.3 Para pisos y revestimientos
A200: 16.2 Para alfombras y pisos de goma
A201: 16.3 Para pisos vinílicos
A202: 16.4 Para pisos de madera
A203: 17-Maderas
A204: 17.1 Tablas de pino - m2 -
A205: 17.2 Tirantes por ml - hasta 5m -
A206: 17.3 Machimbres
A207: 17.4 Fenólicos
A208: 17.5 Madera Industrializada
A209: 17.5.1 Tablero Finger Joint pino (1,20 x 3,00) - un -
A210: 17.5.2 Viguetas multilaminadas - un -
... 115 more rows

Sheet Computo
B1: Desig. | D1: L [m] | E1: H [m]
B2: 1 | C2: 0.18 | D2: 12.5 | E2: 5 | F2: =D2*E2 -> 62.5 | G2: =4*4+2*0.8+1.2*1 -> 18.8 | H2: =F2-G2 -> 43.7
B3: 2 | C3: 0.18 | D3: 12.5 | E3: 5 | F3: 62.5 | H3: 62.5
B4: 3 | C4: 0.18 | D4: 20 | E4: 5 | F4: 100 | H4: 100
B5: 4 | C5: 0.18 | D5: 20 | E5: 5 | F5: 100 | H5: 100
B6: 5 | C6: 0.12 | D6: 1.3 | E6: 2.7 | F6: 3.51 | G6: =0.6*0.4 -> 0.24 | H6: 3.27
B7: 6 | C7: 0.12 | D7: 1.3 | E7: 2.7 | F7: 3.51 | G7: =0.8*2 -> 1.6 | H7: 1.91
B8: 7 | C8: 0.12 | D8: 2.85 | E8: 2.7 | F8: 7.695 | G8: 1.6 | H8: 6.095
B9: 8 | C9: 0.12 | D9: 2.85 | E9: 2.7 | F9: 7.695 | H9: 7.695
F10: =SUM(F2:F9) -> 347.41 | G10: 22.24 | H10: 325.17
A12: demoliciones
A13: Desig. | B13: Dirección | D13: L [m] | E13: H [m]
A14: m1 | F14: =D14*E14 -> 0 | H14: =F14-G14 -> 0
A15: m2 | F15: 0 | H15: 0
A16: m3 | F16: 0 | H16: 0
A17: m4 | F17: 0 | H17: 0
A18: m5 | F18: 0 | H18: 0
A19: m6 | F19: 0 | H19: 0
F20: =SUM(F14:F19) -> 0 | H20: =SUM(H14:H19) -> 0
A22: Local | B22: 1 | C22: 5 | D22: 6 | E22: 7
A23: uso | B23: TINGLADO | C23: KITCHENET | D23: BAÑO | E23: totales
A24: a | B24: 12.2 | C24: 2.85 | D24: 1.3
A25: b | B25: 18 | C25: 2.85 | D25: 1.3
A26: h | B26: 5 | C26: 2.7 | D26: 2.7
B27: 0 | C27: 0 | D27: 2
B28: =B26-B27 -> 5 | C28: 2.7 | D28: 0.7 | E28: =SUM(B28:D28) -> 8.4
A29: A | B29: =+B30 -> 219.6 | C29: 8.1225 | D29: 1.69 | E29: 229.4125
A30: A* | B30: =B24*B25 -> 219.6 | C30: 8.1225 | D30: 1.69 | E30: 229.4125
B31: =+B32*B27 -> 0 | C31: 0 | D31: 10.4 | E31: 10.4
A32: P | B32: =2*(B24+B25) -> 60.4 | C32: 11.4 | D32: 5.2 | E32: 77
A33: estructura de techo | B33: =B29 -> 219.6 | C33: 8.1225 | D33: 1.69 | E33: 229.4125
A34: cubierta de techo | B34: =B29 -> 219.6 | C34: 8.1225 | D34: 1.69 | E34: 229.4125
A35: cielorraso | B35: =B29 -> 219.6 | C35: 8.1225 | D35: 1.69 | E35: 229.4125
A36: zingueria | B36: =+B32 -> 60.4 | D36: 0 | E36: 60.4
A37: revoques | B37: =+B32*B28*2 -> 604 | C37: 61.56 | D37: 7.28 | E37: 672.84
A38: revestimientos | B38: =+B31*B32 -> 0 | C38: =C32*C27 -> 0 | D38: 10.4 | E38: 10.4
A39: carpeta | B39: =+B29 -> 219.6 | C39: 8.1225 | D39: 1.69 | E39: 229.4125
A40: piso | B40: =+B29 -> 219.6 | C40: 8.1225 | D40: 1.69 | E40: 229.4125
A41: zócalo | B41: =+B32 -> 60.4 | C41: 11.4 | D41: 5.2 | E41: 77
A42: pintura int. | B42: =+B37 -> 604 | C42: 61.56 | D42: 7.28 | E42: 672.84
A43: desagües Cloacales | D43: 4 | E43: 4
A44: Inst. Eléctrica | B44: 8 | C44: 1 | D44: 1 | E44: 10
A45: Carpinteria colocación | B45: =+#REF! ->  | I45: =SUM(B45:H45) -> 

Sheet Presupuesto
C1: =NOW() -> 2023-03-29T09:41:45.630
A3: PLANILLA RESUMEN DE COMPUTO Y PRESUPUESTO - PRESUPUESTO DE MANO DE OBRA
A5: OBRA:
A6: UBICACIÓN:
A7: COMITENTE:
A8: REFERENCIA:
A10: Se tomó como referencia los precios publicados en la Revista Cuadros de Costos N 162 correspondiente al mes de diciembre de 2022.
B12: MANO DE OBRA | D12: =SUM(E26:E41) -> 10355086.75
B14: MATERIALES | D14: =SUM(F26:F41) -> 10041721.71
B16: SUBTOTAL DIC-2022 | D16: =SUM(E26:F41) -> 20396808.46
C20: SUBTOTAL MAR-2023 | D20: =SUM(E30:F42)*1.2 -> 23968237.89
A22: Precio con IVA y Beneficios | D22: =1.7*D20 -> 40746004.41
A24: ITEM | B24: DENOMINACION | C24: CANTIDAD | D24: UD. | E24: ITEM | F24: ITEM
E25: MO | F25: MAT
A26: 1 | B26: REPLANTEO Y PRELIMINARES | C26: =5.3*23.9 -> 126.67 | D26: m² | E26: =LOOKUP(A26,'Análisis de Precios'!B:B,'Análisis de Precios'!F:F) -> 45658.2015 | F26: =LOOKUP(A26,'Análisis de Precios'!B:B,'Análisis de Precios'!G:G) -> 0
A27: 2 | B27: NIVELACION COMPACTACION Y RELLENO | C27: 100 | D27: m² | E27: =LOOKUP(A27,'Análisis de Precios'!B:B,'Análisis de Precios'!F:F) -> 55980 | F27: =LOOKUP(A27,'Análisis de Precios'!B:B,'Análisis de Precios'!G:G) -> 0
A28: 3 | B28: EXCAVACION PARA FUNDACIONES | C28: =1.5*1.5*1.5*14+23.9*2*0.1*0.3 -> 48.684 | D28: m³ | E28: =LOOKUP(A28,'Análisis de Precios'!B:B,'Análisis de Precios'!F:F) -> 181688.688 | F28: =LOOKUP(A28,'Análisis de Precios'!B:B,'Análisis de Precios'!G:G) -> 0
A29: 4 | B29: DOBLADO DE ACEROS | C29: 2000 | D29: Kg | E29: =LOOKUP(A29,'Análisis de Precios'!B:B,'Análisis de Precios'!F:F) -> 139950 | F29: =LOOKUP(A29,'Análisis de Precios'!B:B,'Análisis de Precios'!G:G) -> 0 | H29: =+PI()*(6/20)^2/10000 -> 2.827433388e-05 | I29: =+H29*7850 -> 0.221953521 | J29: =23.9*3*4/0.15 -> 1912
A30: 5 | B30: FUNDACIONES DE HORMIGON ARMADO | C30: =1.5*1.5*0.5*14+0.4*0.4*1*14 -> 17.99 | D30: m³ | E30: =LOOKUP(A30,'Análisis de Precios'!B:B,'Análisis de Precios'!F:F) -> 732372.9 | F30: =LOOKUP(A30,'Análisis de Precios'!B:B,'Análisis de Precios'!G:G) -> 272600.9245 | H30: =+PI()*(8/20)^2/10000 -> 5.026548246e-05 | I30: =+H30*7850 -> 0.3945840373 | J30: =23.9*3*4*4 -> 1147.2
A31: 6 | B31: CAPA AISLADORA CAJÓN | C31: =+(23.9*2+5.3*2)*0.18 -> 10.512 | D31: m² | E31: =LOOKUP(A31,'Análisis de Precios'!B:B,'Análisis de Precios'!F:F) -> 35572.608 | F31: =LOOKUP(A31,'Análisis de Precios'!B:B,'Análisis de Precios'!G:G) -> 53530.56297 | H31: =+PI()*(10/20)^2/10000 -> 7.853981634e-05 | I31: =+H31*7850 -> 0.6165375583
A32: 7 | B32: MAMP DE ELEVACION DE 18 | C32: =+(23.9*2+5.3*2)*(3.1+2.1*3) -> 548.96 | D32: m² | E32: =LOOKUP(A32,'Análisis de Precios'!B:B,'Análisis de Precios'!F:F) -> 1250105.436 | F32: =LOOKUP(A32,'Análisis de Precios'!B:B,'Análisis de Precios'!G:G) -> 1431783.861 | H32: =+PI()*(0.6)^2/10000 -> 0.0001130973355 | I32: 0.8878140839 | J32: =3*3*5*4*2*1.5 -> 540
A33: 8 | B33: REFUERZOS H°A° MAMPOSTERÍA | C33: =+C31*0.03 -> 0.31536 | D33: m³ | E33: =LOOKUP(A33,'Análisis de Precios'!B:B,'Análisis de Precios'!F:F) -> 12838.3056 | F33: =LOOKUP(A33,'Análisis de Precios'!B:B,'Análisis de Precios'!G:G) -> 8094.824439 | J33: =+SUMPRODUCT(I29:I32,J29:J32) -> 1356.461545
A34: 9 | B34: CARPINTERIAS - SOLO COLOCACIÓN | C34: 15 | D34: GL | E34: =LOOKUP(A34,'Análisis de Precios'!B:B,'Análisis de Precios'!F:F) -> 33075 | F34: =LOOKUP(A34,'Análisis de Precios'!B:B,'Análisis de Precios'!G:G) -> 1431186.388
A35: 10 | B35: CARPINTERIAS - PREPARACIÓN COLOCACIÓN | C35: 15 | D35: m² | E35: =LOOKUP(A35,'Análisis de Precios'!B:B,'Análisis de Precios'!F:F) -> 40302.9 | F35: =LOOKUP(A35,'Análisis de Precios'!B:B,'Análisis de Precios'!G:G) -> 6182.132231
A36: 11 | B36: AZOTADO IMPERMEABLE interior | C36: =+C32 -> 548.96 | D36: m² | E36: =LOOKUP(A36,'Análisis de Precios'!B:B,'Análisis de Precios'!F:F) -> 838056.06 | F36: =LOOKUP(A36,'Análisis de Precios'!B:B,'Análisis de Precios'!G:G) -> 1642668.955
A37: 12 | B37: REVOQUE FRATASADO | C37: =+C32*2 -> 1097.92 | D37: m² | E37: =LOOKUP(A37,'Análisis de Precios'!B:B,'Análisis de Precios'!F:F) -> 514007.7168 | F37: =LOOKUP(A37,'Análisis de Precios'!B:B,'Análisis de Precios'!G:G) -> 1219507.835
A38: 13 | B38: PISO INDUSTRIAL H°A° | C38: =+C26 -> 126.67 | D38: m³ | E38: =LOOKUP(A38,'Análisis de Precios'!B:B,'Análisis de Precios'!F:F) -> 5855004.075 | F38: =LOOKUP(A38,'Análisis de Precios'!B:B,'Análisis de Precios'!G:G) -> 3143939.996
A39: 14 | B39: PÍNTURA AL LATEX | C39: =+C37 -> 1097.92 | D39: m² | E39: =LOOKUP(A39,'Análisis de Precios'!B:B,'Análisis de Precios'!F:F) -> 268177.9392 | F39: =LOOKUP(A39,'Análisis de Precios'!B:B,'Análisis de Precios'!G:G) -> 326797.2491
A40: 15 | B40: CUBIERTA SOBRE ESTRUCTURA METÁLICA | C40: =+C26 -> 126.67 | D40: m² | E40: =LOOKUP(A40,'Análisis de Precios'!B:B,'Análisis de Precios'!F:F) -> 327663.6225 | F40: =LOOKUP(A40,'Análisis de Precios'!B:B,'Análisis de Precios'!G:G) -> 445756.2533
A41: 16 | B41: ZINGUERÍA | C41: 1 | D41: GL | E41: =LOOKUP(A41,'Análisis de Precios'!B:B,'Análisis de Precios'!F:F) -> 24633.3 | F41: =LOOKUP(A41,'Análisis de Precios'!B:B,'Análisis de Precios'!G:G) -> 59672.72727

Sheet Análisis de Precios
E1: =NOW() -> 2023-03-29T09:41:45.630
C3: ANALISIS UNITARIO POR RUBROS | D3: Computo | E3: Unidad | F3: M. O | G3: Materiales | H3: P.U ($/un)
B5: 1 | C5: =LOOKUP(B5,Presupuesto!A$26:A$40,Presupuesto!$B$26:$B$40) -> REPLANTEO Y PRELIMINARES | D5: =LOOKUP(B5,Presupuesto!A:A,Presupuesto!C:C) -> 126.67 | E5: =LOOKUP(B5,Presupuesto!A$26:A$40,Presupuesto!$D$26:$D$40) -> m² | F5: =+SUMPRODUCT(G11:G12,E11:E12) -> 45658.2015 | H5: =+SUMPRODUCT(G11:G12,F11:F12) -> 360.45
C7: Incluye armado de vallado perimetral para fijación de puntos de replanteo, marcado de ejes de mamposterias y filo exterior e interior sin incluir revoque, sobre piso de losa con hilo embebido en ferrite. incluye demolición de porciónes de muros existentes, recuperación de material para escombros y relleno para compactar.
D9: un | E9: Cantidad | F9: Rendimiento | G9: P.U
C10: Mano de Obra
A11: 101 | C11: =LOOKUP(A11,Materiales!$C$10:$C$337,Materiales!$D$10:$D$348) -> Horas Oficial | D11: =LOOKUP(A11,Materiales!$C$11:$C$337,Materiales!$E$11:$E$339) -> HS | E11: =+F11*$D$5 -> 25.334 | F11: 0.2 | G11: =LOOKUP(A11,Materiales!C:C,Materiales!G:G) -> 1102.5
A12: 102 | C12: =LOOKUP(A12,Materiales!$C$10:$C$337,Materiales!$D$10:$D$348) -> Horas Ayudante | D12: =LOOKUP(A12,Materiales!$C$11:$C$337,Materiales!$E$11:$E$339) -> HS | E12: 19.0005 | F12: 0.15 | G12: =LOOKUP(A12,Materiales!C:C,Materiales!G:G) -> 933
B14: 2 | C14: =LOOKUP($B$14,Presupuesto!A$26:A$40,Presupuesto!$B$26:$B$40) -> NIVELACION COMPACTACION Y RELLENO | D14: =LOOKUP($B$14,Presupuesto!A$26:A$40,Presupuesto!$C$26:$C$40) -> 100 | E14: =LOOKUP($B$14,Presupuesto!A$26:A$40,Presupuesto!$D$26:$D$40) -> m² | F14: =+SUMPRODUCT(G20,E20) -> 55980 | H14: =+SUMPRODUCT(G20,F20) -> 559.8
C16: Con pizón manual en una a dos capas, incluye desmonte de las zonas elevadas, mexcla de suelo y escombros para refozar suelo. perfilado final con pala ,queda el terreno preparado para recibir al contrapiso. espesor promedio de trabajo : 5/10 cm. incluye el traslado y distribucion de suelo de relleno : 7 mts.
D18: un | E18: Cantidad | F18: Rendimiento | G18: P.U
C19: Mano de Obra
A20: 102 | C20: =LOOKUP(A20,Materiales!$C$10:$C$337,Materiales!$D$10:$D$348) -> Horas Ayudante | D20: =LOOKUP(A20,Materiales!$C$11:$C$337,Materiales!$E$11:$E$339) -> HS | E20: =+F20*$D$14 -> 60 | F20: 0.6 | G20: =LOOKUP(A20,Materiales!C:C,Materiales!G:G) -> 933
B22: 3 | C22: =LOOKUP(B22,Presupuesto!A$26:A$40,Presupuesto!$B$26:$B$40) -> EXCAVACION PARA FUNDACIONES | D22: =LOOKUP(B22,Presupuesto!A$26:A$40,Presupuesto!$C$26:$C$40) -> 48.684 | E22: =LOOKUP(B22,Presupuesto!A$26:A$40,Presupuesto!$D$26:$D$40) -> m³ | F22: =+SUMPRODUCT(G28,E28) -> 181688.688 | H22: =+SUMPRODUCT(F28,G28) -> 3732
C24: Excavación a mano en tierra colorada para zanja de hasta 0,3mts de ancho, y hasta 0,2 mts de profundidad. el suelo extraido se aprovecha para posterior relleno y compactacion. suelo de fundacion compactado manualmente por impacto con pison de 15 kg desde altura 0,40 mts incluye remoción de escombros y pisos cortados con amoladora angular.
D26: un | E26: Cantidad | F26: Rendimiento | G26: P.U
C27: Mano de Obra
A28: 102 | C28: =LOOKUP(A28,Materiales!$C$10:$C$337,Materiales!$D$10:$D$348) -> Horas Ayudante | D28: =LOOKUP(A28,Materiales!$C$11:$C$337,Materiales!$E$11:$E$339) -> HS | E28: =+F28*$D$22 -> 194.736 | F28: 4 | G28: =LOOKUP(A28,Materiales!C:C,Materiales!G:G) -> 933
B30: 4 | C30: =LOOKUP(B30,Presupuesto!A$26:A$40,Presupuesto!$B$26:$B$40) -> DOBLADO DE ACEROS | D30: =LOOKUP(B30,Presupuesto!A$26:A$40,Presupuesto!$C$26:$C$40) -> 2000 | E30: =LOOKUP(B30,Presupuesto!A$26:A$637,Presupuesto!$D$26:$D$639) -> Kg | F30: =+SUMPRODUCT(G36,E36) -> 139950 | H30: =+SUMPRODUCT(G36,F36) -> 69.975
C32: Corresponde a los doblados y cortes de barras para ejecución de armaduras de refuerzos verticales y horizontales en mamposterias y apoyos de estructura de techo, se ejecutan a mano con grinfas de diferentes tamaños, y en mesa de doblado convencional hecha con planchas de gruesas de madera.
D34: un | E34: Cantidad | F34: Rendimiento | G34: P.U
C35: Mano de Obra
A36: 102 | C36: =LOOKUP(A36,Materiales!$C$10:$C$337,Materiales!$D$10:$D$348) -> Horas Ayudante | D36: =LOOKUP(A36,Materiales!$C$11:$C$337,Materiales!$E$11:$E$339) -> HS | E36: =+F36*$D$30 -> 150 | F36: 0.075 | G36: =LOOKUP(A36,Materiales!C:C,Materiales!G:G) -> 933
B38: 5 | C38: =LOOKUP(B38,Presupuesto!A$26:A$40,Presupuesto!$B$26:$B$40) -> FUNDACIONES DE HORMIGON ARMADO | D38: =LOOKUP(B38,Presupuesto!A$26:A$40,Presupuesto!$C$26:$C$40) -> 17.99 | E38: =LOOKUP(B38,Presupuesto!A$26:A$637,Presupuesto!$D$26:$D$639) -> m³ | F38: =+SUMPRODUCT(E49:E50,G49:G50) -> 732372.9 | G38: =+SUMPRODUCT(E44:E47,G44:G47) -> 272600.9245 | H38: =+SUMPRODUCT(F44:F50,G44:G50) -> 66378.51991
D42: un | E42: Cantidad | F42: Rendimiento | G42: P.U
C43: Materiales
A44: 301 | C44: =LOOKUP(A44,Materiales!$C$10:$C$337,Materiales!$D$10:$D$348) -> Cemento Portland | D44: =LOOKUP(A44,Materiales!$C$11:$C$337,Materiales!$E$11:$E$339) -> bls. | E44: =+F44*$D$38 -> 107.94 | F44: 6 | G44: =LOOKUP(A44,Materiales!$C$11:$C$337,Materiales!$G$11:$G$339) -> 1603.305785
A45: 304 | C45: =LOOKUP(A45,Materiales!$C$10:$C$337,Materiales!$D$10:$D$348) -> Arena mediana | D45: =LOOKUP(A45,Materiales!$C$11:$C$337,Materiales!$E$11:$E$339) -> m³ | E45: 11.8734 | F45: 0.66 | G45: =LOOKUP(A45,Materiales!$C$11:$C$337,Materiales!$G$11:$G$339) -> 3801.652893
A46: 308 | C46: =LOOKUP(A46,Materiales!$C$10:$C$337,Materiales!$D$10:$D$348) -> Piedra 6/20 | D46: =LOOKUP(A46,Materiales!$C$11:$C$337,Materiales!$E$11:$E$339) -> m³ | E46: 11.8734 | F46: 0.66 | G46: =LOOKUP(A46,Materiales!$C$11:$C$337,Materiales!$G$11:$G$339) -> 4297.520661
A47: 316-1 | C47: =LOOKUP(A47,Materiales!$C$10:$C$337,Materiales!$D$10:$D$348) -> Hierro Ø 6 torsionado | D47: =LOOKUP(A47,Materiales!$C$11:$C$337,Materiales!$E$11:$E$339) -> Kg. | E47: =$D$80*F47 -> 9.4608 | F47: 30 | G47: =LOOKUP(A47,Materiales!$C$11:$C$337,Materiales!$G$11:$G$339) -> 356.7743551
C48: Mano de Obra
A49: 101 | C49: =LOOKUP(A49,Materiales!$C$10:$C$337,Materiales!$D$10:$D$348) -> Horas Oficial | D49: =LOOKUP(A49,Materiales!$C$11:$C$337,Materiales!$E$11:$E$339) -> HS | E49: =+F49*$D$38 -> 359.8 | F49: 20 | G49: =LOOKUP(A49,Materiales!$C$11:$C$337,Materiales!$G$11:$G$339) -> 1102.5
A50: 102 | C50: =LOOKUP(A50,Materiales!$C$10:$C$337,Materiales!$D$10:$D$348) -> Horas Ayudante | D50: =LOOKUP(A50,Materiales!$C$11:$C$337,Materiales!$E$11:$E$339) -> HS | E50: 359.8 | F50: 20 | G50: =LOOKUP(A50,Materiales!$C$11:$C$337,Materiales!$G$11:$G$339) -> 933
B52: 6 | C52: =LOOKUP(B52,Presupuesto!A$26:A$40,Presupuesto!$B$26:$B$40) -> CAPA AISLADORA CAJÓN | D52: =LOOKUP(B52,Presupuesto!A$26:A$40,Presupuesto!$C$26:$C$40) -> 10.512 | E52: =LOOKUP(B52,Presupuesto!A$26:A$637,Presupuesto!$D$26:$D$639) -> m² | F52: =+SUMPRODUCT(G63:G64,E63:E64) -> 35572.608 | G52: =+SUMPRODUCT(E58:E61,G58:G61) -> 53530.56297 | H52: =+SUMPRODUCT(F58:F64,G58:G64) -> 8476.32905
C54: Ejecutado mamposterias de ladrillo ceramico hueco reforzadas con encadenados perimetrales, con hormigon elaborado al pie de obra con hormigonera de 60 lts. Incluye armado de hierros en banco. Colocacion de encofrado de tablas de madera de pino con costillas de tirantes de madera.
D56: un | E56: Cantidad | F56: Rendimiento | G56: P.U
C57: Materiales
A58: 301 | C58: =LOOKUP(A58,Materiales!$C$10:$C$337,Materiales!$D$10:$D$348) -> Cemento Portland | D58: =LOOKUP(A58,Materiales!C:C,Materiales!E:E) -> bls. | E58: =+F58*$D$52 -> 3.1536 | F58: 0.3 | G58: =LOOKUP(A58,Materiales!$C$11:$C$337,Materiales!$G$11:$G$339) -> 1603.305785
A59: 304 | C59: =LOOKUP(A59,Materiales!$C$10:$C$337,Materiales!$D$10:$D$348) -> Arena mediana | D59: =LOOKUP(A59,Materiales!C:C,Materiales!E:E) -> m³ | E59: 6.93792 | F59: 0.66 | G59: =LOOKUP(A59,Materiales!$C$11:$C$337,Materiales!$G$11:$G$339) -> 3801.652893
A60: 310 | C60: =LOOKUP(A60,Materiales!$C$10:$C$337,Materiales!$D$10:$D$348) -> Hidrófugo | D60: =LOOKUP(A60,Materiales!C:C,Materiales!E:E) -> Kg. | E60: 0.15768 | F60: =+F58/2*0.1 -> 0.015 | G60: =LOOKUP(A60,Materiales!$C$11:$C$337,Materiales!$G$11:$G$339) -> 149.7603306
A61: 403 | C61: =LOOKUP(A61,Materiales!$C$10:$C$337,Materiales!$D$10:$D$348) -> Ladrillos livianos 18 x 18 x 25 | D61: =LOOKUP(A61,Materiales!C:C,Materiales!E:E) -> un. | E61: 220.752 | F61: 21 | G61: =LOOKUP(A61,Materiales!$C$11:$C$337,Materiales!$G$11:$G$339) -> 100
C62: Mano de Obra
A63: 101 | C63: =LOOKUP(A63,Materiales!$C$10:$C$337,Materiales!$D$10:$D$348) -> Horas Oficial | D63: =LOOKUP(A63,Materiales!C:C,Materiales!E:E) -> HS | E63: =+F63*$D$52 -> 18.9216 | F63: 1.8 | G63: =LOOKUP(A63,Materiales!$C$11:$C$337,Materiales!$G$11:$G$339) -> 1102.5
A64: 102 | C64: =LOOKUP(A64,Materiales!$C$10:$C$337,Materiales!$D$10:$D$348) -> Horas Ayudante | D64: =LOOKUP(A64,Materiales!C:C,Materiales!E:E) -> HS | E64: 15.768 | F64: 1.5 | G64: =LOOKUP(A64,Materiales!$C$11:$C$337,Materiales!$G$11:$G$339) -> 933
B66: 7 | C66: =LOOKUP(B66,Presupuesto!A$26:A$40,Presupuesto!$B$26:$B$40) -> MAMP DE ELEVACION DE 18 | D66: =LOOKUP(B66,Presupuesto!A$26:A$40,Presupuesto!$C$26:$C$40) -> 548.96 | E66: =LOOKUP(B66,Presupuesto!A$26:A$637,Presupuesto!$D$26:$D$639) -> m² | F66: =+SUMPRODUCT(G77:G78,E77:E78) -> 1250105.436 | G66: =+SUMPRODUCT(G72:G75,E72:E75) -> 1431783.861 | H66: =+SUMPRODUCT(G67:G78,F67:F78) -> 4885.400207
D70: un | E70: Cantidad | F70: Rendimiento | G70: P.U
C71: Materiales
A72: 403 | C72: =LOOKUP(A72,Materiales!$C$10:$C$337,Materiales!$D$10:$D$348) -> Ladrillos livianos 18 x 18 x 25 | D72: =LOOKUP(A72,Materiales!C:C,Materiales!E:E) -> un. | E72: =+F72*$D$66 -> 11528.16 | F72: 21 | G72: =LOOKUP(A72,Materiales!$C$11:$C$337,Materiales!$G$11:$G$339) -> 100
A73: 304 | C73: =LOOKUP(A73,Materiales!$C$10:$C$337,Materiales!$D$10:$D$348) -> Arena mediana | D73: =LOOKUP(A73,Materiales!C:C,Materiales!E:E) -> m³ | E73: 32.9376 | F73: 0.06 | G73: =LOOKUP(A73,Materiales!$C$11:$C$337,Materiales!$G$11:$G$339) -> 3801.652893
A74: 303 | C74: =LOOKUP(A74,Materiales!$C$10:$C$337,Materiales!$D$10:$D$348) -> Cemento de albañilería | D74: =LOOKUP(A74,Materiales!C:C,Materiales!E:E) -> bls. | E74: 87.8336 | F74: 0.16 | G74: =LOOKUP(A74,Materiales!$C$11:$C$337,Materiales!$G$11:$G$339) -> 1603.305785
A75: 316 | C75: =LOOKUP(A75,Materiales!$C$10:$C$337,Materiales!$D$10:$D$348) -> Hierro Ø 6 torsionado | D75: =LOOKUP(A75,Materiales!C:C,Materiales!E:E) -> brs. | E75: 13.724 | F75: 0.025 | G75: =LOOKUP(A75,Materiales!$C$11:$C$337,Materiales!$G$11:$G$339) -> 941.8842975
C76: Mano de Obra
A77: 101 | C77: =LOOKUP(A77,Materiales!$C$10:$C$331,Materiales!$D$10:$D$337) -> Horas Oficial | D77: =LOOKUP(A77,Materiales!C:C,Materiales!E:E) -> HS | E77: =+F77*$D$66 -> 576.408 | F77: 1.05 | G77: =LOOKUP(A77,Materiales!$C$11:$C$337,Materiales!$G$11:$G$339) -> 1102.5
A78: 102 | C78: =LOOKUP(A78,Materiales!$C$10:$C$331,Materiales!$D$10:$D$337) -> Horas Ayudante | D78: =LOOKUP(A78,Materiales!C:C,Materiales!E:E) -> HS | E78: 658.752 | F78: 1.2 | G78: =LOOKUP(A78,Materiales!$C$11:$C$337,Materiales!$G$11:$G$339) -> 933
B80: 8 | C80: =LOOKUP(B80,Presupuesto!A$26:A$40,Presupuesto!$B$26:$B$40) -> REFUERZOS H°A° MAMPOSTERÍA | D80: =LOOKUP(B80,Presupuesto!A$26:A$40,Presupuesto!$C$26:$C$40) -> 0.31536 | E80: =LOOKUP(B80,Presupuesto!A$26:A$637,Presupuesto!$D$26:$D$639) -> m³ | F80: =+SUMPRODUCT(G91:G92,E91:E92) -> 12838.3056 | G80: =+SUMPRODUCT(G86:G89,E86:E89) -> 8094.824439 | H80: =+SUMPRODUCT(G81:G92,F81:F92) -> 66378.51991
D84: un | E84: Cantidad | F84: Rendimiento | G84: P.U
C85: Materiales
A86: 301 | C86: =LOOKUP(A86,Materiales!$C$10:$C$337,Materiales!$D$10:$D$348) -> Cemento Portland | D86: =LOOKUP(A86,Materiales!$C$11:$C$337,Materiales!$E$11:$E$339) -> bls. | E86: =$D$80*F86 -> 1.89216 | F86: 6 | G86: =LOOKUP(A86,Materiales!$C$11:$C$337,Materiales!$G$11:$G$339) -> 1603.305785
A87: 304 | C87: =LOOKUP(A87,Materiales!$C$10:$C$337,Materiales!$D$10:$D$348) -> Arena mediana | D87: =LOOKUP(A87,Materiales!$C$11:$C$337,Materiales!$E$11:$E$339) -> m³ | E87: 0.2081376 | F87: 0.66 | G87: =LOOKUP(A87,Materiales!$C$11:$C$337,Materiales!$G$11:$G$339) -> 3801.652893
A88: 308 | C88: =LOOKUP(A88,Materiales!$C$10:$C$337,Materiales!$D$10:$D$348) -> Piedra 6/20 | D88: =LOOKUP(A88,Materiales!$C$11:$C$337,Materiales!$E$11:$E$339) -> m³ | E88: 0.2081376 | F88: 0.66 | G88: =LOOKUP(A88,Materiales!$C$11:$C$337,Materiales!$G$11:$G$339) -> 4297.520661
A89: 316-1 | C89: =LOOKUP(A89,Materiales!$C$10:$C$337,Materiales!$D$10:$D$348) -> Hierro Ø 6 torsionado | D89: =LOOKUP(A89,Materiales!$C$11:$C$337,Materiales!$E$11:$E$339) -> Kg. | E89: 9.4608 | F89: 30 | G89: =LOOKUP(A89,Materiales!$C$11:$C$337,Materiales!$G$11:$G$339) -> 356.7743551
C90: Mano de Obra
A91: 101 | C91: =LOOKUP(A91,Materiales!$C$10:$C$331,Materiales!$D$10:$D$337) -> Horas Oficial | D91: =LOOKUP(A91,Materiales!$C$11:$C$331,Materiales!$E$11:$E$335) -> HS | E91: =$D$80*F91 -> 6.3072 | F91: 20 | G91: =LOOKUP(A91,Materiales!$C$11:$C$337,Materiales!$G$11:$G$339) -> 1102.5
A92: 102 | C92: =LOOKUP(A92,Materiales!$C$10:$C$331,Materiales!$D$10:$D$337) -> Horas Ayudante | D92: =LOOKUP(A92,Materiales!$C$11:$C$331,Materiales!$E$11:$E$335) -> HS | E92: 6.3072 | F92: 20 | G92: =LOOKUP(A92,Materiales!$C$11:$C$337,Materiales!$G$11:$G$339) -> 933
B94: 9 | C94: =LOOKUP(B94,Presupuesto!A$26:A$40,Presupuesto!$B$26:$B$40) -> CARPINTERIAS - SOLO COLOCACIÓN | D94: =LOOKUP(B94,Presupuesto!A$26:A$40,Presupuesto!$C$26:$C$40) -> 15 | E94: =LOOKUP(B94,Presupuesto!A$26:A$637,Presupuesto!$D$26:$D$639) -> GL | F94: =+SUMPRODUCT(G101,E101) -> 33075 | G94: =+SUMPRODUCT(E99,G99) -> 1431186.388
D97: un | E97: Cantidad | F97: Rendimiento | G97: P.U
C98: Materiales
A99: 618 | C99: =LOOKUP(A99,Materiales!$C$10:$C$337,Materiales!$D$10:$D$348) -> Puerta aluminio blanco 1,00mx2,10m | D99: =LOOKUP(A99,Materiales!$C$10:$C$337,Materiales!E:E) -> un. | E99: =+D94 -> 15 | F99: 1 | G99: =LOOKUP(A99,Materiales!$C$11:$C$337,Materiales!$G$11:$G$339) -> 95412.42586
C100: Mano de Obra
A101: 101 | C101: =LOOKUP(A101,Materiales!$C$10:$C$337,Materiales!$D$10:$D$348) -> Horas Oficial | D101: =LOOKUP(A101,Materiales!$C$11:$C$337,Materiales!$E$11:$E$339) -> HS | E101: =+F101*$D$94 -> 30 | F101: 2 | G101: =LOOKUP(A101,Materiales!$C$11:$C$337,Materiales!$G$11:$G$339) -> 1102.5
B103: 10 | C103: =LOOKUP(B103,Presupuesto!A$26:A$40,Presupuesto!$B$26:$B$40) -> CARPINTERIAS - PREPARACIÓN COLOCACIÓN | D103: =LOOKUP(B103,Presupuesto!A$26:A$40,Presupuesto!$C$26:$C$40) -> 15 | E103: =LOOKUP(B103,Presupuesto!A$26:A$637,Presupuesto!$D$26:$D$639) -> m² | F103: =+SUMPRODUCT(G113:G114,E113:E114) -> 40302.9 | G103: =+SUMPRODUCT(E109:E111,G109:G111) -> 6182.132231 | H103: =+SUMPRODUCT(F109:F114,G109:G114) -> 3099.002149
D107: un | E107: Cantidad | F107: Rendimiento | G107: P.U
C108: Materiales
A109: 301 | C109: =LOOKUP(A109,Materiales!$C$10:$C$337,Materiales!$D$10:$D$348) -> Cemento Portland | D109: =LOOKUP(A109,Materiales!$C$11:$C$337,Materiales!$E$11:$E$339) -> bls. | E109: =+F109*$D$103 -> 3.6 | F109: 0.24 | G109: =LOOKUP(A109,Materiales!$C$11:$C$337,Materiales!$G$11:$G$339) -> 1603.305785
A110: 304 | C110: =LOOKUP(A110,Materiales!$C$10:$C$337,Materiales!$D$10:$D$348) -> Arena mediana | D110: =LOOKUP(A110,Materiales!$C$11:$C$337,Materiales!$E$11:$E$339) -> m³ | E110: 0.015 | F110: 0.001 | G110: =LOOKUP(A110,Materiales!$C$11:$C$337,Materiales!$G$11:$G$339) -> 3801.652893
A111: 316 | C111: =LOOKUP(A111,Materiales!$C$10:$C$337,Materiales!$D$10:$D$348) -> Hierro Ø 6 torsionado | D111: =LOOKUP(A111,Materiales!$C$11:$C$337,Materiales!$E$11:$E$339) -> brs. | E111: 0.375 | F111: 0.025 | G111: =LOOKUP(A111,Materiales!$C$11:$C$337,Materiales!$G$11:$G$339) -> 941.8842975
C112: Mano de Obra
A113: 101 | C113: =LOOKUP(A113,Materiales!$C$10:$C$337,Materiales!$D$10:$D$348) -> Horas Oficial | D113: =LOOKUP(A113,Materiales!$C$11:$C$337,Materiales!$E$11:$E$339) -> HS | E113: =+F113*$D$103 -> 19.8 | F113: 1.32 | G113: =LOOKUP(A113,Materiales!$C$11:$C$337,Materiales!$G$11:$G$339) -> 1102.5
A114: 102 | C114: =LOOKUP(A114,Materiales!$C$10:$C$337,Materiales!$D$10:$D$348) -> Horas Ayudante | D114: =LOOKUP(A114,Materiales!$C$11:$C$337,Materiales!$E$11:$E$339) -> HS | E114: 19.8 | F114: 1.32 | G114: =LOOKUP(A114,Materiales!$C$11:$C$337,Materiales!$G$11:$G$339) -> 933
B116: 11 | C116: =LOOKUP(B116,Presupuesto!A$26:A$40,Presupuesto!$B$26:$B$40) -> AZOTADO IMPERMEABLE interior | D116: =LOOKUP(B116,Presupuesto!A$26:A$40,Presupuesto!$C$26:$C$40) -> 548.96 | E116: =LOOKUP(B116,Presupuesto!A$26:A$637,Presupuesto!$D$26:$D$639) -> m² | F116: =+SUMPRODUCT(G126:G127,E126:E127) -> 838056.06 | G116: =+SUMPRODUCT(E122:E124,G122:G124) -> 1642668.955 | H116: =+SUMPRODUCT(G117:G127,F117:F127) -> 4518.95405
D120: un | E120: Cantidad | F120: Rendimiento | G120: P.U
C121: Materiales
A122: 301 | C122: =LOOKUP(A122,Materiales!$C$10:$C$337,Materiales!$D$10:$D$348) -> Cemento Portland | D122: =LOOKUP(A122,Materiales!$C$11:$C$337,Materiales!$E$11:$E$339) -> bls. | E122: =+F122*$D$116 -> 164.688 | F122: 0.3 | G122: =LOOKUP(A122,Materiales!$C$11:$C$337,Materiales!$G$11:$G$339) -> 1603.305785
A123: 304 | C123: =LOOKUP(A123,Materiales!$C$10:$C$337,Materiales!$D$10:$D$348) -> Arena mediana | D123: =LOOKUP(A123,Materiales!$C$11:$C$337,Materiales!$E$11:$E$339) -> m³ | E123: 362.3136 | F123: 0.66 | G123: =LOOKUP(A123,Materiales!$C$11:$C$337,Materiales!$G$11:$G$339) -> 3801.652893
A124: 310 | C124: =LOOKUP(A124,Materiales!$C$10:$C$337,Materiales!$D$10:$D$348) -> Hidrófugo | D124: =LOOKUP(A124,Materiales!$C$11:$C$337,Materiales!$E$11:$E$339) -> Kg. | E124: 8.2344 | F124: =+F122/2*0.1 -> 0.015 | G124: =LOOKUP(A124,Materiales!$C$11:$C$337,Materiales!$G$11:$G$339) -> 149.7603306
C125: Mano de Obra
A126: 101 | C126: =LOOKUP(A126,Materiales!$C$10:$C$337,Materiales!$D$10:$D$348) -> Horas Oficial | D126: =LOOKUP(A126,Materiales!$C$11:$C$337,Materiales!$E$11:$E$339) -> HS | E126: =+F126*$D$116 -> 411.72 | F126: 0.75 | G126: =LOOKUP(A126,Materiales!$C$11:$C$337,Materiales!$G$11:$G$339) -> 1102.5
A127: 102 | C127: =LOOKUP(A127,Materiales!$C$10:$C$337,Materiales!$D$10:$D$348) -> Horas Ayudante | D127: =LOOKUP(A127,Materiales!$C$11:$C$337,Materiales!$E$11:$E$339) -> HS | E127: 411.72 | F127: 0.75 | G127: =LOOKUP(A127,Materiales!$C$11:$C$337,Materiales!$G$11:$G$339) -> 933
B129: 12 | C129: =LOOKUP(B129,Presupuesto!A$26:A$40,Presupuesto!$B$26:$B$40) -> REVOQUE FRATASADO | D129: =LOOKUP(B129,Presupuesto!A$26:A$40,Presupuesto!$C$26:$C$40) -> 1097.92 | E129: =LOOKUP(B129,Presupuesto!A$26:A$637,Presupuesto!$D$26:$D$639) -> m² | F129: =+SUMPRODUCT(G139:G140,E139:E140) -> 514007.7168 | G129: =+SUMPRODUCT(E135:E137,G135:G137) -> 1219507.835 | H129: =+SUMPRODUCT(G135:G140,F135:F140) -> 1578.908802
D133: un | E133: Cantidad | F133: Rendimiento | G133: P.U
C134: Materiales
A135: 301 | C135: =LOOKUP(A135,Materiales!$C$10:$C$337,Materiales!$D$10:$D$348) -> Cemento Portland | D135: =LOOKUP(A135,Materiales!$C$11:$C$337,Materiales!$E$11:$E$339) -> bls. | E135: =+F135*$D$129 -> 87.8336 | F135: 0.08 | G135: =LOOKUP(A135,Materiales!$C$11:$C$337,Materiales!$G$11:$G$339) -> 1603.305785
A136: 304 | C136: =LOOKUP(A136,Materiales!$C$10:$C$337,Materiales!$D$10:$D$348) -> Arena mediana | D136: =LOOKUP(A136,Materiales!$C$11:$C$337,Materiales!$E$11:$E$339) -> m³ | E136: 65.8752 | F136: 0.06 | G136: =LOOKUP(A136,Materiales!$C$11:$C$337,Materiales!$G$11:$G$339) -> 3801.652893
A137: 302 | C137: =LOOKUP(A137,Materiales!$C$10:$C$337,Materiales!$D$10:$D$348) -> Cal hidratada | D137: =LOOKUP(A137,Materiales!$C$11:$C$337,Materiales!$E$11:$E$339) -> bls. | E137: 702.6688 | F137: 0.64 | G137: =LOOKUP(A137,Materiales!$C$11:$C$337,Materiales!$G$11:$G$339) -> 1178.719008
C138: Mano de Obra
A139: 101 | C139: =LOOKUP(A139,Materiales!$C$10:$C$337,Materiales!$D$10:$D$348) -> Horas Oficial | D139: =LOOKUP(A139,Materiales!$C$11:$C$337,Materiales!$E$11:$E$339) -> HS | E139: =+F139*$D$129 -> 252.5216 | F139: 0.23 | G139: =LOOKUP(A139,Materiales!$C$11:$C$337,Materiales!$G$11:$G$339) -> 1102.5
A140: 102 | C140: =LOOKUP(A140,Materiales!$C$10:$C$337,Materiales!$D$10:$D$348) -> Horas Ayudante | D140: =LOOKUP(A140,Materiales!$C$11:$C$337,Materiales!$E$11:$E$339) -> HS | E140: 252.5216 | F140: 0.23 | G140: =LOOKUP(A140,Materiales!$C$11:$C$337,Materiales!$G$11:$G$339) -> 933
B142: 13 | C142: =LOOKUP(B142,Presupuesto!A$26:A$40,Presupuesto!$B$26:$B$40) -> PISO INDUSTRIAL H°A° | D142: =LOOKUP(B142,Presupuesto!A$26:A$40,Presupuesto!$C$26:$C$40) -> 126.67 | E142: =LOOKUP(B142,Presupuesto!A$26:A$637,Presupuesto!$D$26:$D$639) -> m³ | F142: =+SUMPRODUCT(G153:G154,E153:E154) -> 5855004.075 | G142: =+SUMPRODUCT(E148:E151,G148:G151) -> 3143939.996 | H142: =+SUMPRODUCT(F148:F154,G148:G154) -> 71042.42576
D146: un | E146: Cantidad | F146: Rendimiento | G146: P.U
C147: Materiales
A148: 301 | C148: =LOOKUP(A148,Materiales!$C$10:$C$337,Materiales!$D$10:$D$348) -> Cemento Portland | D148: =LOOKUP(A148,Materiales!$C$11:$C$337,Materiales!$E$11:$E$339) -> bls. | E148: =F148*$D$142 -> 760.02 | F148: 6 | G148: =LOOKUP(A148,Materiales!$C$11:$C$337,Materiales!$G$11:$G$339) -> 1603.305785
A149: 304 | C149: =LOOKUP(A149,Materiales!$C$10:$C$337,Materiales!$D$10:$D$348) -> Arena mediana | D149: =LOOKUP(A149,Materiales!$C$11:$C$337,Materiales!$E$11:$E$339) -> m³ | E149: 83.6022 | F149: 0.66 | G149: =LOOKUP(A149,Materiales!$C$11:$C$337,Materiales!$G$11:$G$339) -> 3801.652893
A150: 308 | C150: =LOOKUP(A150,Materiales!$C$10:$C$337,Materiales!$D$10:$D$348) -> Piedra 6/20 | D150: =LOOKUP(A150,Materiales!$C$11:$C$337,Materiales!$E$11:$E$339) -> m³ | E150: 83.6022 | F150: 0.66 | G150: =LOOKUP(A150,Materiales!$C$11:$C$337,Materiales!$G$11:$G$339) -> 4297.520661
A151: 317-1 | C151: =LOOKUP(A151,Materiales!$C$10:$C$337,Materiales!$D$10:$D$348) -> Hierro Ø 8 torsionado | D151: =LOOKUP(A151,Materiales!$C$11:$C$337,Materiales!$E$11:$E$339) -> Kg. | E151: 3800.1 | F151: 30 | G151: =LOOKUP(A151,Materiales!$C$11:$C$337,Materiales!$G$11:$G$339) -> 328.4878835
C152: Mano de Obra
A153: 101 | C153: =LOOKUP(A153,Materiales!$C$10:$C$337,Materiales!$D$10:$D$348) -> Horas Oficial | D153: HS | E153: =F153*$D$142 -> 3166.75 | F153: 25 | G153: =LOOKUP(A153,Materiales!$C$11:$C$337,Materiales!$G$11:$G$339) -> 1102.5
A154: 102 | C154: =LOOKUP(A154,Materiales!$C$10:$C$337,Materiales!$D$10:$D$348) -> Horas Ayudante | D154: HS | E154: 2533.4 | F154: 20 | G154: =LOOKUP(A154,Materiales!$C$11:$C$337,Materiales!$G$11:$G$339) -> 933
B156: 14 | C156: =LOOKUP(B156,Presupuesto!A$26:A$40,Presupuesto!$B$26:$B$40) -> PÍNTURA AL LATEX | D156: =LOOKUP(B156,Presupuesto!A$26:A$40,Presupuesto!$C$26:$C$40) -> 1097.92 | E156: =LOOKUP(B156,Presupuesto!A$26:A$637,Presupuesto!$D$26:$D$639) -> m² | F156: =+SUMPRODUCT(G165:G166,E165:E166) -> 268177.9392 | G156: =+SUMPRODUCT(E162:E163,G162:G163) -> 326797.2491 | H156: =+SUMPRODUCT(G157:G166,F157:F166) -> 541.9112397
D160: un | E160: Cantidad | F160: Rendimiento | G160: P.U
C161: Materiales
A162: 1205 | C162: =LOOKUP(A162,Materiales!$C$10:$C$337,Materiales!$D$10:$D$348) -> Sellador fijador | D162: =LOOKUP(A162,Materiales!$C$11:$C$337,Materiales!$E$11:$E$339) -> lts | E162: =+F162*$D$156 -> 109.792 | F162: 0.1 | G162: =LOOKUP(A162,Materiales!$C$11:$C$337,Materiales!$G$11:$G$339) -> 725
A163: 1216 | C163: =LOOKUP(A163,Materiales!$C$10:$C$337,Materiales!$D$10:$D$348) -> Látex exterior blanco | D163: =LOOKUP(A163,Materiales!$C$11:$C$337,Materiales!$E$11:$E$339) -> lts | E163: 230.5632 | F163: 0.21 | G163: =LOOKUP(A163,Materiales!$C$11:$C$337,Materiales!$G$11:$G$339) -> 1072.14876
C164: Mano de Obra
A165: 101 | C165: =LOOKUP(A165,Materiales!$C$10:$C$337,Materiales!$D$10:$D$348) -> Horas Oficial | D165: =LOOKUP(A165,Materiales!$C$11:$C$337,Materiales!$E$11:$E$339) -> HS | E165: =+F165*$D$156 -> 131.7504 | F165: 0.12 | G165: =LOOKUP(A165,Materiales!$C$11:$C$337,Materiales!$G$11:$G$339) -> 1102.5
A166: 102 | C166: =LOOKUP(A166,Materiales!$C$10:$C$337,Materiales!$D$10:$D$348) -> Horas Ayudante | D166: =LOOKUP(A166,Materiales!$C$11:$C$337,Materiales!$E$11:$E$339) -> HS | E166: 131.7504 | F166: 0.12 | G166: =LOOKUP(A166,Materiales!$C$11:$C$337,Materiales!$G$11:$G$339) -> 933
B168: 15 | C168: =LOOKUP(B168,Presupuesto!A:A,Presupuesto!B:B) -> CUBIERTA SOBRE ESTRUCTURA METÁLICA | D168: =LOOKUP(B168,Presupuesto!A:A,Presupuesto!C:C) -> 126.67 | E168: =LOOKUP(B168,Presupuesto!A:A,Presupuesto!D:D) -> m² | F168: =+SUMPRODUCT(E183:E184,G183:G184) -> 327663.6225 | G168: =+SUMPRODUCT(E174:E181,G174:G181) -> 445756.2533 | H168: =SUMPRODUCT(F180:F184,G180:G184)+SUM(G174:G179)/D168 -> 5795.478655
C170: Correas: perfiles C: 80x50x15x1,60mm Incluye: la fabricación en obra suplementos de las cabriadas y su montaje. Elevación y montaje de cabriadas y clavadores.
D172: un | E172: Cantidad | F172: Rendimiento | G172: P.U
C173: Materiales
A174: 343 | C174: =LOOKUP(A174,Materiales!$C$10:$C$337,Materiales!$D$10:$D$348) -> Perfil C 80x50x15x1.60mm | D174: =LOOKUP(A174,Materiales!$C$10:$C$337,Materiales!E:E) -> Kg. | E174: =7.4*6/12 -> 3.7 | G174: =LOOKUP(A174,Materiales!$C$11:$C$337,Materiales!$G$11:$G$339) -> 14313.33884
A175: 331 | C175: =LOOKUP(A175,Materiales!$C$10:$C$337,Materiales!$D$10:$D$348) -> Electrodos 2,5 mm | D175: =LOOKUP(A175,Materiales!$C$10:$C$337,Materiales!E:E) -> Kg. | E175: =0.25*E174 -> 0.925 | G175: =LOOKUP(A175,Materiales!$C$11:$C$337,Materiales!$G$11:$G$339) -> 1533.057851
A176: 1231 | C176: =LOOKUP(A176,Materiales!$C$10:$C$337,Materiales!$D$10:$D$348) -> Convertidor de óxido | D176: =LOOKUP(A176,Materiales!$C$10:$C$337,Materiales!E:E) -> lts | E176: =0.25*E174 -> 0.925 | G176: =LOOKUP(A176,Materiales!$C$11:$C$337,Materiales!$G$11:$G$339) -> 3092.561983
A177: 1232 | C177: =LOOKUP(A177,Materiales!$C$10:$C$337,Materiales!$D$10:$D$348) -> Esmalte sintético 1lt | D177: =LOOKUP(A177,Materiales!$C$10:$C$337,Materiales!E:E) -> un. | E177: =0.25*E174 -> 0.925 | G177: =LOOKUP(A177,Materiales!$C$11:$C$337,Materiales!$G$11:$G$339) -> 2958.677686
A178: 1203 | C178: =LOOKUP(A178,Materiales!$C$10:$C$337,Materiales!$D$10:$D$348) -> Tinheer | D178: =LOOKUP(A178,Materiales!$C$10:$C$337,Materiales!E:E) -> un. | E178: =E177+E176 -> 1.85 | G178: =LOOKUP(A178,Materiales!$C$11:$C$337,Materiales!$G$11:$G$339) -> 612.2975207
A179: 311 | C179: =LOOKUP(A179,Materiales!$C$10:$C$337,Materiales!$D$10:$D$348) -> Alambre Go16 | D179: =LOOKUP(A179,Materiales!$C$10:$C$337,Materiales!E:E) -> un. | E179: =0.5*E174 -> 1.85 | G179: =LOOKUP(A179,Materiales!$C$11:$C$337,Materiales!$G$11:$G$339) -> 834.0578512
A180: 351 | C180: =LOOKUP(A180,Materiales!$C$10:$C$337,Materiales!$D$10:$D$348) -> Tornillos autoperforantes para techo | D180: =LOOKUP(A180,Materiales!$C$10:$C$337,Materiales!E:E) -> un. | E180: =F180*$D$168 -> 760.02 | F180: 6 | G180: =LOOKUP(A180,Materiales!$C$11:$C$337,Materiales!$G$11:$G$339) -> 24.79338843
A181: 902 | C181: =LOOKUP(A181,Materiales!$C$10:$C$337,Materiales!$D$10:$D$348) -> Chapa de cinc Acanalada Nº 27 | D181: =LOOKUP(A181,Materiales!$C$10:$C$337,Materiales!E:E) -> un. | E181: =$D$168*F181 -> 126.67 | F181: 1 | G181: =LOOKUP(A181,Materiales!$C$11:$C$337,Materiales!$G$11:$G$339) -> 2875.678502
C182: Mano de Obra
A183: 101 | C183: =LOOKUP(A183,Materiales!$C$10:$C$337,Materiales!$D$10:$D$348) -> Horas Oficial | D183: =LOOKUP(A183,Materiales!$C$11:$C$337,Materiales!$E$11:$E$339) -> HS | E183: =$D$168*F183 -> 190.005 | F183: 1.5 | G183: =LOOKUP(A183,Materiales!$C$11:$C$337,Materiales!$G$11:$G$339) -> 1102.5
A184: 102 | C184: =LOOKUP(A184,Materiales!$C$10:$C$337,Materiales!$D$10:$D$348) -> Horas Ayudante | D184: =LOOKUP(A184,Materiales!$C$11:$C$337,Materiales!$E$11:$E$339) -> HS | E184: 126.67 | F184: 1 | G184: =LOOKUP(A184,Materiales!$C$11:$C$337,Materiales!$G$11:$G$339) -> 933
B186: 16 | C186: =LOOKUP(B186,Presupuesto!A:A,Presupuesto!B:B) -> ZINGUERÍA | D186: =LOOKUP(B186,Presupuesto!A:A,Presupuesto!C:C) -> 1 | E186: =LOOKUP(B186,Presupuesto!A:A,Presupuesto!D:D) -> GL | F186: =+SUMPRODUCT(E199:E200,G199:G200) -> 24633.3 | G186: =+SUMPRODUCT(E192:E197,G192:G197) -> 59672.72727
C188: De chapa lisa H°G° n°27. El análisis incluye: Plegado preparado en taller según detalle de planos, traslado de materiales a tractor desde obrador hasta el pie de obra, colocación y sujeción ejecutada con tornillos parker y remaches pop, elevación y montaje de cabriadas y clavadores. Incluye la fabricación en obra suplementos de las cabriadas y su montaje.
D190: un | E190: Cantidad | F190: Rendimiento | G190: P.U
C191: Materiales
A192: 913 | C192: =LOOKUP(A192,Materiales!$C$10:$C$337,Materiales!$D$10:$D$348) -> Babeta C°G° N°30 des. 25cm | D192: =LOOKUP(A192,Materiales!$C$10:$C$337,Materiales!E:E) -> m² | E192: 7.4 | G192: =LOOKUP(A192,Materiales!$C$11:$C$337,Materiales!$G$11:$G$339) -> 768.5950413
A193: 914 | C193: =LOOKUP(A193,Materiales!$C$10:$C$337,Materiales!$D$10:$D$348) -> Cenefa C°G° N°30 des. 30cm | D193: =LOOKUP(A193,Materiales!$C$10:$C$337,Materiales!E:E) -> m² | E193: =4.6*2+7.4 -> 16.6 | G193: =LOOKUP(A193,Materiales!$C$11:$C$337,Materiales!$G$11:$G$339) -> 1570.247934
A194: 915 | C194: =LOOKUP(A194,Materiales!$C$10:$C$337,Materiales!$D$10:$D$348) -> Canaleta C°G° N°25 des. 40cm | D194: =LOOKUP(A194,Materiales!$C$10:$C$337,Materiales!E:E) -> un. | E194: 7.4 | G194: =LOOKUP(A194,Materiales!$C$11:$C$337,Materiales!$G$11:$G$339) -> 2834.710744
A195: 916 | C195: =LOOKUP(A195,Materiales!$C$10:$C$337,Materiales!$D$10:$D$348) -> Soporte canaleta rectangular 15cm | D195: =LOOKUP(A195,Materiales!$C$10:$C$337,Materiales!E:E) -> un. | E195: 10 | G195: =LOOKUP(A195,Materiales!$C$11:$C$337,Materiales!$G$11:$G$339) -> 495.8677686
A196: 917 | C196: =LOOKUP(A196,Materiales!$C$10:$C$337,Materiales!$D$10:$D$348) -> Embudo redondo Ø100mm | D196: =LOOKUP(A196,Materiales!$C$10:$C$337,Materiales!E:E) -> un. | E196: 2 | G196: =LOOKUP(A196,Materiales!$C$11:$C$337,Materiales!$G$11:$G$339) -> 991.7355372
A197: 909 | C197: =LOOKUP(A197,Materiales!$C$10:$C$337,Materiales!$D$10:$D$348) -> remaches pop 3,5 x 12 | D197: =LOOKUP(A197,Materiales!$C$10:$C$337,Materiales!E:E) -> un. | E197: 5 | G197: =LOOKUP(A197,Materiales!$C$11:$C$337,Materiales!$G$11:$G$339) -> 0
C198: Mano de Obra
A199: 101 | C199: =LOOKUP(A199,Materiales!$C$10:$C$337,Materiales!$D$10:$D$348) -> Horas Oficial | D199: =LOOKUP(A199,Materiales!$C$11:$C$337,Materiales!$E$11:$E$339) -> HS | E199: =F199 -> 15.7 | F199: =0.5*(SUM(E192:E194)) -> 15.7 | G199: =LOOKUP(A199,Materiales!$C$11:$C$337,Materiales!$G$11:$G$339) -> 1102.5
A200: 102 | C200: =LOOKUP(A200,Materiales!$C$10:$C$337,Materiales!$D$10:$D$348) -> Horas Ayudante | D200: =LOOKUP(A200,Materiales!$C$11:$C$337,Materiales!$E$11:$E$339) -> HS | E200: 7.85 | F200: =0.25*(SUM(E192:E194)) -> 7.85 | G200: =LOOKUP(A200,Materiales!$C$11:$C$337,Materiales!$G$11:$G$339) -> 933
C222: CARPETA DE CONCRETO BAJO PISO | D222: 1 | E222: =LOOKUP(B222,Presupuesto!A$26:A$637,Presupuesto!$D$26:$D$639) ->  | F222: =+SUMPRODUCT(G223:G228,F223:F228) -> 1968.442562 | G222: =+SUMPRODUCT(G227:G228,E227:E228) -> 530.925 | H222: =+SUMPRODUCT(G224:G226,F224:F226) -> 1437.517562
A224: 301 | C224: =LOOKUP(A224,Materiales!$C$10:$C$337,Materiales!$D$10:$D$348) -> Cemento Portland | D224: =LOOKUP(A224,Materiales!$C$11:$C$337,Materiales!$E$11:$E$339) -> bls. | E224: =+F224*$D$222 -> 0.25 | F224: 0.25 | G224: =LOOKUP(A224,Materiales!$C$11:$C$337,Materiales!$G$11:$G$339) -> 1603.305785
A225: 304 | C225: =LOOKUP(A225,Materiales!$C$10:$C$337,Materiales!$D$10:$D$348) -> Arena mediana | D225: =LOOKUP(A225,Materiales!$C$11:$C$337,Materiales!$E$11:$E$339) -> m³ | E225: 0.25 | F225: 0.25 | G225: =LOOKUP(A225,Materiales!$C$11:$C$337,Materiales!$G$11:$G$339) -> 3801.652893
A226: 318.1 | C226: =LOOKUP(A226,Materiales!$C$10:$C$337,Materiales!$D$10:$D$348) -> Hierro Ø 12 torsionado | D226: =LOOKUP(A226,Materiales!$C$11:$C$337,Materiales!$E$11:$E$339) -> brs. | E226: 0.025 | F226: 0.025 | G226: =LOOKUP(A226,Materiales!$C$11:$C$337,Materiales!$G$11:$G$339) -> 3451.115702
A227: 101 | C227: HORAS OFICIAL | D227: =LOOKUP(A227,Materiales!$C$11:$C$337,Materiales!$E$11:$E$339) -> HS | E227: 0.27 | F227: 0.27 | G227: =LOOKUP(A227,Materiales!$C$11:$C$337,Materiales!$G$11:$G$339) -> 1102.5
A228: 102 | C228: HORAS AYUDANTE | D228: =LOOKUP(A228,Materiales!$C$11:$C$337,Materiales!$E$11:$E$339) -> HS | E228: 0.25 | F228: 0.25 | G228: =LOOKUP(A228,Materiales!$C$11:$C$337,Materiales!$G$11:$G$339) -> 933
C230: PISO CERÁMICO | D230: 1 | E230: =LOOKUP(B230,Presupuesto!A$26:A$637,Presupuesto!$D$26:$D$639) ->  | F230: =+SUMPRODUCT(G231:G235,F231:F235) -> 4316.238843 | G230: =+SUMPRODUCT(G234:G235,E234:E235) -> 720.9 | H230: =+SUMPRODUCT(G232:G233,F232:F233) -> 3595.338843
A232: 1002 | C232: =LOOKUP(A232,Materiales!$C$10:$C$337,Materiales!$D$10:$D$348) -> Adhesivo para ceramica por 30 kls. | D232: =LOOKUP(A232,Materiales!$C$11:$C$337,Materiales!$E$11:$E$339) -> bls. | E232: =+F232*$D$230 -> 0.095 | F232: 0.095 | G232: =LOOKUP(A232,Materiales!$C$11:$C$337,Materiales!$G$11:$G$339) -> 3047.933884
A233: 1004 | C233: =LOOKUP(A233,Materiales!$C$10:$C$337,Materiales!$D$10:$D$348) -> Porcelanato 60x60 pulido | D233: =LOOKUP(A233,Materiales!$C$11:$C$337,Materiales!$E$11:$E$339) -> m² | E233: 1 | F233: 1 | G233: =LOOKUP(A233,Materiales!$C$11:$C$337,Materiales!$G$11:$G$339) -> 3305.785124
A234: 101 | C234: HORAS OFICIAL | D234: =LOOKUP(A234,Materiales!$C$11:$C$337,Materiales!$E$11:$E$339) -> HS | E234: =+F234*$D$222 -> 0.4 | F234: 0.4 | G234: =LOOKUP(A234,Materiales!$C$11:$C$337,Materiales!$G$11:$G$339) -> 1102.5
A235: 102 | C235: HORAS AYUDANTE | D235: =LOOKUP(A235,Materiales!$C$11:$C$337,Materiales!$E$11:$E$339) -> HS | E235: 0.3 | F235: 0.3 | G235: =LOOKUP(A235,Materiales!$C$11:$C$337,Materiales!$G$11:$G$339) -> 933

Sheet Materiales
D1: OBRA: Sala Tableros UBICACIÓN: Campo Grande, Misiones COMITENTE: CASA FUENTES - FINLAYS REFERENCIA: T28 | H1: =NOW() -> 2023-03-29T09:41:45.630
D3: LISTADO DE MATERIALES NECESARIOS PARA EJECUCION DE LA OBRA
D5: TIEMPO ESTIMADO DE TRABAJO | H5: =+F11+F12+220 -> 10374.3135
D7: PLAZO TOTAL DE OBRA ESTIMADO CUADRILLA: 2 Oficiales+2 Ayudantes | H7: =+(H5/8/I8) -> 324.1972969
H8: =+H5/I8/8/20 -> 16.20986484 | I8: 4 | J8: personas | L8: IVA | M8: 1.21
D10: Elemento | E10: un | F10: CANTIDAD | G10: COSTO UNITARIO | H10: COSTO SUBTOTAL
A11: 1 | B11: MANO DE OBRA | C11: 101 | D11: Horas Oficial | E11: HS | F11: =SUMIF('Análisis de Precios'!A:A,C11,'Análisis de Precios'!E:E) -> 5205.6878 | G11: =1.5*735 -> 1102.5 | H11: =+G11*F11 -> 5739270.799
C12: 102 | D12: Horas Ayudante | E12: HS | F12: =SUMIF('Análisis de Precios'!A:A,C12,'Análisis de Precios'!E:E) -> 4948.6257 | G12: =1.5*622 -> 933 | H12: 4617067.778
C13: 103 | D13: HORAS RETRO | E13: HS | F13: =SUMIF('Análisis de Precios'!A:A,C13,'Análisis de Precios'!E:E) -> 0 | H13: 0
C14: 104 | D14: HORAS CAMIÓN | E14: HS | F14: =SUMIF('Análisis de Precios'!A:A,C14,'Análisis de Precios'!E:E) -> 0 | H14: 0
A15: 3 | B15: VARIOS | C15: 301 | D15: Cemento Portland | E15: bls. | F15: =SUMIF('Análisis de Precios'!A:A,C15,'Análisis de Precios'!E:E) -> 1129.37736 | G15: =1940/$M$8 -> 1603.305785 | H15: 1810737.255
C16: 302 | D16: Cal hidratada | E16: bls. | F16: =SUMIF('Análisis de Precios'!A:A,C16,'Análisis de Precios'!E:E) -> 702.6688 | G16: =1426.25/$M$8 -> 1178.719008 | H16: 828249.0711
C17: 302.1 | D17: Mortero preparado para revoque fino | E17: bls. | F17: =SUMIF('Análisis de Precios'!A:A,C17,'Análisis de Precios'!E:E) -> 0 | G17: =2456.8/$M$8 -> 2030.413223 | H17: 0
C18: 303 | D18: Cemento de albañilería | E18: bls. | F18: =SUMIF('Análisis de Precios'!A:A,C18,'Análisis de Precios'!E:E) -> 87.8336 | G18: =1940/$M$8 -> 1603.305785 | H18: 140824.119
C19: 304 | D19: Arena mediana | E19: m³ | F19: =SUMIF('Análisis de Precios'!A:A,C19,'Análisis de Precios'!E:E) -> 564.0130576 | G19: =4600/$M$8 -> 3801.652893 | H19: 2144181.872
C20: 305 | D20: arena gruesa | E20: m³ | F20: =SUMIF('Análisis de Precios'!A:A,C20,'Análisis de Precios'!E:E) -> 0 | H20: 0
C21: 306 | D21: hormigón elaborado H 17 | E21: m³ | F21: =SUMIF('Análisis de Precios'!A:A,C21,'Análisis de Precios'!E:E) -> 0 | H21: 0
C22: 307 | D22: hormigón elaborado H 4 | E22: m³ | F22: =SUMIF('Análisis de Precios'!A:A,C22,'Análisis de Precios'!E:E) -> 0 | H22: 0
C23: 307.1 | D23: Vigueton premoldeado vipret clase V2 largo 4,2 mts | E23: un. | F23: =SUMIF('Análisis de Precios'!A:A,C23,'Análisis de Precios'!E:E) -> 0 | H23: 0
C24: 307.2 | D24: Vigueta pretensada | E24: m | F24: =SUMIF('Análisis de Precios'!A:A,C24,'Análisis de Precios'!E:E) -> 0 | H24: 0
C25: 307.3 | D25: ladrillo telgopor 12 42 100 | E25: un. | F25: =SUMIF('Análisis de Precios'!A:A,C25,'Análisis de Precios'!E:E) -> 0 | H25: 0
C26: 308 | D26: Piedra 6/20 | E26: m³ | F26: =SUMIF('Análisis de Precios'!A:A,C26,'Análisis de Precios'!E:E) -> 95.6837376 | G26: =5200/$M$8 -> 4297.520661 | H26: 411202.8393
C27: 309 | D27: piedra tipo balastron | E27: m³ | F27: =SUMIF('Análisis de Precios'!A:A,C27,'Análisis de Precios'!E:E) -> 0 | H27: 0
C28: 309.1 | D28: PIEDRA VOLADA COMÚN | E28: Tn | F28: =SUMIF('Análisis de Precios'!A:A,C28,'Análisis de Precios'!E:E) -> 0 | H28: 0
C29: 309.2 | D29: PIEDRA VOLADA ELEGIDA PARA MURO | E29: Tn | F29: =SUMIF('Análisis de Precios'!A:A,C29,'Análisis de Precios'!E:E) -> 0 | H29: 0
C30: 310 | D30: Hidrófugo | E30: Kg. | F30: =SUMIF('Análisis de Precios'!A:A,C30,'Análisis de Precios'!E:E) -> 8.39208 | G30: =36242/(200*$M$8) -> 149.7603306 | H30: 1256.800675
C31: 310.1 | D31: Weber.tec con ceresita | E31: bsa. | F31: =SUMIF('Análisis de Precios'!A:A,C31,'Análisis de Precios'!E:E) -> 0 | G31: =4985/$M$8 -> 4119.834711 | H31: 0
C32: 311 | D32: Alambre Go16 | E32: Kg. | F32: =SUMIF('Análisis de Precios'!A:A,C32,'Análisis de Precios'!E:E) -> 1.85 | G32: =1009.21/$M$8 -> 834.0578512 | H32: 1543.007025
C33: 312 | D33: alambre negro N° 16 | E33: Kg. | F33: =SUMIF('Análisis de Precios'!A:A,C33,'Análisis de Precios'!E:E) -> 0 | H33: 0
C34: 313 | D34: alambre negro nº 9 | E34: Kg. | F34: =SUMIF('Análisis de Precios'!A:A,C34,'Análisis de Precios'!E:E) -> 0 | H34: 0
C35: 314 | D35: alambre de púa x 500 mts. | E35: rollo | F35: =SUMIF('Análisis de Precios'!A:A,C35,'Análisis de Precios'!E:E) -> 0 | H35: 0
C36: 315 | D36: hierro Ø 4,2 torsionado | E36: brs. | F36: =SUMIF('Análisis de Precios'!A:A,C36,'Análisis de Precios'!E:E) -> 0 | H36: 0
C37: 316 | D37: Hierro Ø 6 torsionado | E37: brs. | F37: =SUMIF('Análisis de Precios'!A:A,C37,'Análisis de Precios'!E:E) -> 14.099 | G37: =1139.68/$M$8 -> 941.8842975 | H37: 13279.62671
C38: 317 | D38: hierro Ø 8 torsionado | E38: brs. | F38: =SUMIF('Análisis de Precios'!A:A,C38,'Análisis de Precios'!E:E) -> 0 | H38: 0
C39: 318 | D39: hierro Ø 10 torsionado | E39: brs. | F39: =SUMIF('Análisis de Precios'!A:A,C39,'Análisis de Precios'!E:E) -> 0 | H39: 0
C40: 318.1 | D40: Hierro Ø 12 torsionado | E40: brs. | F40: =SUMIF('Análisis de Precios'!A:A,C40,'Análisis de Precios'!E:E) -> 0.025 | G40: =4175.85/$M$8 -> 3451.115702 | H40: 86.27789256
C41: 318.2 | D41: hierro Ø 16 torsionado | E41: brs. | F41: =SUMIF('Análisis de Precios'!A:A,C41,'Análisis de Precios'!E:E) -> 0 | H41: 0
C42: 318.3 | D42: hierro Ø 20 torsionado | E42: brs. | F42: =SUMIF('Análisis de Precios'!A:A,C42,'Análisis de Precios'!E:E) -> 0 | H42: 0
C43: 318.4 | D43: hierro Ø 25 torsionado | E43: brs. | F43: =SUMIF('Análisis de Precios'!A:A,C43,'Análisis de Precios'!E:E) -> 0 | H43: 0
C44: 318.5 | D44: malla sima 150x150x6 mm | E44: un. | F44: =SUMIF('Análisis de Precios'!A:A,C44,'Análisis de Precios'!E:E) -> 0 | H44: 0
C45: 319 | D45: hierro liso Ø 8 | E45: brs. | F45: =SUMIF('Análisis de Precios'!A:A,C45,'Análisis de Precios'!E:E) -> 0 | H45: 0
C46: 320 | D46: hierro liso Ø 12 | E46: brs. | F46: =SUMIF('Análisis de Precios'!A:A,C46,'Análisis de Precios'!E:E) -> 0 | H46: 0
C47: 316-1 | D47: Hierro Ø 6 torsionado | E47: Kg. | F47: =SUMIF('Análisis de Precios'!A:A,C47,'Análisis de Precios'!E:E) -> 18.9216 | G47: =1139.68/(2.64*$M$8) -> 356.7743551 | H47: 6750.741638
C48: 317-1 | D48: Hierro Ø 8 torsionado | E48: Kg. | F48: =SUMIF('Análisis de Precios'!A:A,C48,'Análisis de Precios'!E:E) -> 3800.1 | G48: =1876.06/(4.72*$M$8) -> 328.4878835 | H48: 1248286.806
F49: =SUMIF('Análisis de Precios'!A:A,C49,'Análisis de Precios'!E:E) -> 0
F50: =SUMIF('Análisis de Precios'!A:A,C50,'Análisis de Precios'!E:E) -> 0
F51: =SUMIF('Análisis de Precios'!A:A,C51,'Análisis de Precios'!E:E) -> 0
F52: =SUMIF('Análisis de Precios'!A:A,C52,'Análisis de Precios'!E:E) -> 0
F53: =SUMIF('Análisis de Precios'!A:A,C53,'Análisis de Precios'!E:E) -> 0
F54: =SUMIF('Análisis de Precios'!A:A,C54,'Análisis de Precios'!E:E) -> 0
F55: =SUMIF('Análisis de Precios'!A:A,C55,'Análisis de Precios'!E:E) -> 0
F56: =SUMIF('Análisis de Precios'!A:A,C56,'Análisis de Precios'!E:E) -> 0
C57: 321 | D57: clavos pp 1" | E57: Kg. | F57: =SUMIF('Análisis de Precios'!A:A,C57,'Análisis de Precios'!E:E) -> 0 | H57: =+G57*F57 -> 0
C58: 322 | D58: clavos pp 2" | E58: Kg. | F58: =SUMIF('Análisis de Precios'!A:A,C58,'Análisis de Precios'!E:E) -> 0 | H58: 0
C59: 323 | D59: clavos pp 2 1/2" | E59: Kg. | F59: =SUMIF('Análisis de Precios'!A:A,C59,'Análisis de Precios'!E:E) -> 0 | H59: 0
C60: 324 | D60: clavos pp 3" | E60: Kg. | F60: =SUMIF('Análisis de Precios'!A:A,C60,'Análisis de Precios'!E:E) -> 0 | H60: 0
C61: 325 | D61: clavos pp 4" | E61: Kg. | F61: =SUMIF('Análisis de Precios'!A:A,C61,'Análisis de Precios'!E:E) -> 0 | H61: 0
C62: 326 | D62: clavos 10/30 | E62: Kg. | F62: =SUMIF('Análisis de Precios'!A:A,C62,'Análisis de Precios'!E:E) -> 0 | H62: 0
C63: 327 | D63: clavos 12/40 | E63: Kg. | F63: =SUMIF('Análisis de Precios'!A:A,C63,'Análisis de Precios'!E:E) -> 0 | H63: 0
C64: 328 | D64: clavos CP 3" | E64: un. | F64: =SUMIF('Análisis de Precios'!A:A,C64,'Análisis de Precios'!E:E) -> 0 | H64: 0
C65: 329 | D65: Chapa sinusoidal N° 25 x 5 | E65: m² | F65: =SUMIF('Análisis de Precios'!A:A,C65,'Análisis de Precios'!E:E) -> 0 | H65: 0
C66: 329.1 | D66: Membrana TBA 10 mm | E66: rollo | F66: =SUMIF('Análisis de Precios'!A:A,C66,'Análisis de Precios'!E:E) -> 0 | H66: 0 | L66: =2500/20 -> 125
C67: 330 | D67: chapa lisa n° 18 | E67: m² | F67: =SUMIF('Análisis de Precios'!A:A,C67,'Análisis de Precios'!E:E) -> 0 | H67: 0
C68: 331 | D68: Electrodos 2,5 mm | E68: Kg. | F68: =SUMIF('Análisis de Precios'!A:A,C68,'Análisis de Precios'!E:E) -> 0.925 | G68: =9275/(5*$M$8) -> 1533.057851 | H68: 1418.078512
C69: 332 | D69: plantines de pasto | E69: un. | F69: =SUMIF('Análisis de Precios'!A:A,C69,'Análisis de Precios'!E:E) -> 0 | H69: 0
C70: 341 | D70: perfil C 120 50 15 e 2 | E70: un. | F70: =SUMIF('Análisis de Precios'!A:A,C70,'Análisis de Precios'!E:E) -> 0 | H70: 0
C71: 342 | D71: perfil C 100 50 15 e2 | E71: un. | F71: =SUMIF('Análisis de Precios'!A:A,C71,'Análisis de Precios'!E:E) -> 0 | H71: 0
C72: 343 | D72: Perfil C 80x50x15x1.60mm | E72: un. | F72: =SUMIF('Análisis de Precios'!A:A,C72,'Análisis de Precios'!E:E) -> 3.7 | G72: =17319.14/$M$8 -> 14313.33884 | H72: 52959.35372
C73: 351 | D73: Tornillos autoperforantes para techo | E73: un. | F73: =SUMIF('Análisis de Precios'!A:A,C73,'Análisis de Precios'!E:E) -> 760.02 | G73: =3000/(100*$M$8) -> 24.79338843 | H73: 18843.47107
C74: 352 | D74: tornillos autoperforantes para cumbrera | E74: un. | F74: =SUMIF('Análisis de Precios'!A:A,C74,'Análisis de Precios'!E:E) -> 0 | H74: 0
C75: 353 | D75: tornillos autoperforantes para zingueria | E75: un. | F75: =SUMIF('Análisis de Precios'!A:A,C75,'Análisis de Precios'!E:E) -> 0 | H75: 0
A76: 4 | B76: LADRILLOS | C76: 401 | D76: ladrillos comunes | E76: un. | F76: =SUMIF('Análisis de Precios'!A:A,C76,'Análisis de Precios'!E:E) -> 0 | H76: 0
C77: 402 | D77: ladrillos portantes 18 x 18 x 25 | E77: un. | F77: =SUMIF('Análisis de Precios'!A:A,C77,'Análisis de Precios'!E:E) -> 0 | H77: 0
C78: 403 | D78: Ladrillos livianos 18 x 18 x 25 | E78: un. | F78: =SUMIF('Análisis de Precios'!A:A,C78,'Análisis de Precios'!E:E) -> 11748.912 | G78: =121/$M$8 -> 100 | H78: 1174891.2
C79: 404 | D79: ladrillos 12 x 18 x 25 | E79: un. | F79: =SUMIF('Análisis de Precios'!A:A,C79,'Análisis de Precios'!E:E) -> 0 | H79: 0
C80: 405 | D80: ladrillos 8 x 18 x 25 | E80: un. | F80: =SUMIF('Análisis de Precios'!A:A,C80,'Análisis de Precios'!E:E) -> 0 | H80: 0
C81: 406 | D81: ladrillos peines ceramicos 18 x 18 x 25 | E81: un. | F81: =SUMIF('Análisis de Precios'!A:A,C81,'Análisis de Precios'!E:E) -> 0 | H81: 0
C82: 407 | D82: Ladrillos block de Hormigon | E82: un. | F82: =SUMIF('Análisis de Precios'!A:A,C82,'Análisis de Precios'!E:E) -> 0 | H82: 0
A83: 5 | B83: MADERAS Y CABRIADAS | C83: 501 | D83: tablas de 1x4 mad. pino | E83: mts. | F83: =SUMIF('Análisis de Precios'!A:A,C83,'Análisis de Precios'!E:E) -> 0 | H83: 0
C84: 502 | D84: clavadores 2"x2" mad. Semidura | E84: mts. | F84: =SUMIF('Análisis de Precios'!A:A,C84,'Análisis de Precios'!E:E) -> 0 | H84: 0
C85: 502.1 | D85: tirantes semidura de descarte (estacas) | E85: mts. | F85: =SUMIF('Análisis de Precios'!A:A,C85,'Análisis de Precios'!E:E) -> 0 | H85: 0 | L85: =164*0.15 -> 24.6
C86: 503 | D86: machimbre 1/2" x 4" | E86: m² | F86: =SUMIF('Análisis de Precios'!A:A,C86,'Análisis de Precios'!E:E) -> 0 | H86: 0
C87: 504 | D87: cornizas de pino | E87: mts. | F87: =SUMIF('Análisis de Precios'!A:A,C87,'Análisis de Precios'!E:E) -> 0 | H87: 0
C88: 505 | D88: tirante de pino 2" x 1" | E88: mts. | F88: =SUMIF('Análisis de Precios'!A:A,C88,'Análisis de Precios'!E:E) -> 0 | H88: 0
C89: 505.1 | D89: madera de descarte de pino (costaneros) | E89: mts. | F89: =SUMIF('Análisis de Precios'!A:A,C89,'Análisis de Precios'!E:E) -> 0 | H89: 0
C90: 505.2 | D90: tirante de pino 2" x 2" | E90: mts. | F90: =SUMIF('Análisis de Precios'!A:A,C90,'Análisis de Precios'!E:E) -> 0 | H90: 0
C91: 506 | D91: tablas de 1x 4 mad. Semidura | E91: mts. | F91: =SUMIF('Análisis de Precios'!A:A,C91,'Análisis de Precios'!E:E) -> 0 | H91: 0
C92: 507 | D92: tablas de 1x 6 mad. Semidura | E92: mts. | F92: =SUMIF('Análisis de Precios'!A:A,C92,'Análisis de Precios'!E:E) -> 0 | H92: 0
C93: 510 | D93: postes de madera dura 3" x 3" alt media 1,8 mts | E93: un. | F93: =SUMIF('Análisis de Precios'!A:A,C93,'Análisis de Precios'!E:E) -> 0 | H93: 0
A94: 6 | B94: CARPINTERIAS | C94: 601 | D94: Puerta de Acceso met. frente 0,90 x 2,00 P1 | E94: un. | F94: =SUMIF('Análisis de Precios'!A:A,C94,'Análisis de Precios'!E:E) -> 0 | H94: 0
C95: 602 | D95: Puerta de dormitorio 0,80 x 2,00 P3 | E95: un. | F95: =SUMIF('Análisis de Precios'!A:A,C95,'Análisis de Precios'!E:E) -> 0 | H95: 0
C96: 603 | D96: Puerta de baño 0,7x 2,00 P4 | E96: un. | F96: =SUMIF('Análisis de Precios'!A:A,C96,'Análisis de Precios'!E:E) -> 0 | H96: 0
C97: 604 | D97: Puerta de lavadero 0,9 x 2,00 P2 | E97: un. | F97: =SUMIF('Análisis de Precios'!A:A,C97,'Análisis de Precios'!E:E) -> 0 | H97: 0
C98: 605 | D98: Ventana de estar V1 1,00x1,20 V2 | E98: un. | F98: =SUMIF('Análisis de Precios'!A:A,C98,'Análisis de Precios'!E:E) -> 0 | H98: 0
C99: 606 | D99: Ventana de dormitorio 1,00 x 1,00 V1 | E99: un. | F99: =SUMIF('Análisis de Precios'!A:A,C99,'Análisis de Precios'!E:E) -> 0 | H99: 0
C100: 607 | D100: Ventiluz de baño 0,60 x 0,45 V4 | E100: un. | F100: =SUMIF('Análisis de Precios'!A:A,C100,'Análisis de Precios'!E:E) -> 0 | H100: 0
C101: 608 | D101: Ventana de cocina 0,45x0,60 V3 | E101: un. | F101: =SUMIF('Análisis de Precios'!A:A,C101,'Análisis de Precios'!E:E) -> 0 | H101: 0
C102: 608.5 | D102: ventana de pasillo 0,45 x 0,60 V5 | E102: un. | F102: =SUMIF('Análisis de Precios'!A:A,C102,'Análisis de Precios'!E:E) -> 0 | H102: 0
C103: 609 | D103: puertas placas P3 | E103: un. | F103: =SUMIF('Análisis de Precios'!A:A,C103,'Análisis de Precios'!E:E) -> 0 | H103: 0
C104: 610 | D104: puertas placas P2 | E104: un. | F104: =SUMIF('Análisis de Precios'!A:A,C104,'Análisis de Precios'!E:E) -> 0 | H104: 0
C105: 611 | D105: tornillos tirafondo 18 x 25 | E105: un. | F105: =SUMIF('Análisis de Precios'!A:A,C105,'Análisis de Precios'!E:E) -> 0 | H105: 0
C106: 612 | D106: tornillos tirafondo 13 x 17 | E106: un. | F106: =SUMIF('Análisis de Precios'!A:A,C106,'Análisis de Precios'!E:E) -> 0 | H106: 0
C107: 613 | D107: pomelas hembra | E107: un. | F107: =SUMIF('Análisis de Precios'!A:A,C107,'Análisis de Precios'!E:E) -> 0 | H107: 0
C108: 614 | D108: cerradura comun | E108: un. | F108: =SUMIF('Análisis de Precios'!A:A,C108,'Análisis de Precios'!E:E) -> 0 | H108: 0
C109: 615 | D109: cerradura p/ exterior doble paleta | E109: un. | F109: =SUMIF('Análisis de Precios'!A:A,C109,'Análisis de Precios'!E:E) -> 0 | H109: 0
C110: 616 | D110: picaporte de aluminio tipo ministerio | E110: un. | F110: =SUMIF('Análisis de Precios'!A:A,C110,'Análisis de Precios'!E:E) -> 0 | H110: 0
C111: 617 | D111: picaporte biselado para puertas de exterior | E111: un. | F111: =SUMIF('Análisis de Precios'!A:A,C111,'Análisis de Precios'!E:E) -> 0 | H111: 0
C112: 618 | D112: Puerta aluminio blanco 1,00mx2,10m | E112: un. | F112: =SUMIF('Análisis de Precios'!A:A,C112,'Análisis de Precios'!E:E) -> 15 | G112: =98131.68/(0.85*$M$8) -> 95412.42586 | H112: 1431186.388
A113: 7 | B113: INSTALACION ELECTRICA | C113: 701 | D113: caño de pvc Ø 3/4" x 3 mts | E113: un. | F113: =SUMIF('Análisis de Precios'!A:A,C113,'Análisis de Precios'!E:E) -> 0 | H113: 0
C114: 702 | D114: Conector de hierro 26mm 1" | E114: un. | F114: =SUMIF('Análisis de Precios'!A:A,C114,'Análisis de Precios'!E:E) -> 0 | H114: 0
C115: 703 | D115: Caño plast.corr.pes.26mm 1" | E115: mts. | F115: =SUMIF('Análisis de Precios'!A:A,C115,'Análisis de Precios'!E:E) -> 0 | H115: 0
C116: 704 | D116: conector 3/4" | E116: un. | F116: =SUMIF('Análisis de Precios'!A:A,C116,'Análisis de Precios'!E:E) -> 0 | H116: 0
C117: 705 | D117: curva de pvc Ø 3/4" | E117: un. | F117: =SUMIF('Análisis de Precios'!A:A,C117,'Análisis de Precios'!E:E) -> 0 | H117: 0
C118: 706 | D118: curva de pvc Ø 1" | E118: un. | F118: =SUMIF('Análisis de Precios'!A:A,C118,'Análisis de Precios'!E:E) -> 0 | H118: 0
C119: 707 | D119: cupla de pvc 3/4" | E119: un. | F119: =SUMIF('Análisis de Precios'!A:A,C119,'Análisis de Precios'!E:E) -> 0 | H119: 0
C120: 708 | D120: caja octogonal | E120: un. | F120: =SUMIF('Análisis de Precios'!A:A,C120,'Análisis de Precios'!E:E) -> 0 | H120: 0
C121: 709 | D121: caja met. 5 x10 | E121: un. | F121: =SUMIF('Análisis de Precios'!A:A,C121,'Análisis de Precios'!E:E) -> 0 | H121: 0
C122: 710 | D122: caja met. 10 x10 | E122: un. | F122: =SUMIF('Análisis de Precios'!A:A,C122,'Análisis de Precios'!E:E) -> 0 | H122: 0
C123: 711 | D123: caja p/ alojar dos termicas | E123: un. | F123: =SUMIF('Análisis de Precios'!A:A,C123,'Análisis de Precios'!E:E) -> 0 | H123: 0
C124: 712 | D124: LLAVE TERMICA 1 x 15 A | E124: un. | F124: =SUMIF('Análisis de Precios'!A:A,C124,'Análisis de Precios'!E:E) -> 0 | H124: 0
C125: 713 | D125: LLAVE TERMICA 1 x 20 A | E125: un. | F125: =SUMIF('Análisis de Precios'!A:A,C125,'Análisis de Precios'!E:E) -> 0 | H125: 0
C126: 714 | D126: LLAVE TERMICA 2 x 25 A | E126: un. | F126: =SUMIF('Análisis de Precios'!A:A,C126,'Análisis de Precios'!E:E) -> 0 | H126: 0
C127: 715 | D127: jabalina H°G° 3/8" x 1m | E127: un. | F127: =SUMIF('Análisis de Precios'!A:A,C127,'Análisis de Precios'!E:E) -> 0 | H127: 0
C128: 716 | D128: Caño Pilar liv. Go. 1 1/2" | E128: mts. | F128: =SUMIF('Análisis de Precios'!A:A,C128,'Análisis de Precios'!E:E) -> 0 | H128: 0
C129: 717 | D129: Pipeta bakelita 11/2" | E129: un. | F129: =SUMIF('Análisis de Precios'!A:A,C129,'Análisis de Precios'!E:E) -> 0 | H129: 0
C130: 718 | D130: cable verde amarillo 1,5 MM | E130: mts. | F130: =SUMIF('Análisis de Precios'!A:A,C130,'Análisis de Precios'!E:E) -> 0 | H130: 0
C131: 719 | D131: cable unipolar 1 x 4 MM | E131: mts. | F131: =SUMIF('Análisis de Precios'!A:A,C131,'Análisis de Precios'!E:E) -> 0 | H131: 0
C132: 720 | D132: cable Cu desnudo 7 x 0,80 | E132: mts. | F132: =SUMIF('Análisis de Precios'!A:A,C132,'Análisis de Precios'!E:E) -> 0 | H132: 0
C133: 721 | D133: cable unipolar 2,5 MM | E133: mts. | F133: =SUMIF('Análisis de Precios'!A:A,C133,'Análisis de Precios'!E:E) -> 0 | H133: 0
C134: 722 | D134: cable unipolar 1,5 MM | E134: mts. | F134: =SUMIF('Análisis de Precios'!A:A,C134,'Análisis de Precios'!E:E) -> 0 | H134: 0
C135: 723 | D135: cinta aisladora x 20 mts | E135: mts. | F135: =SUMIF('Análisis de Precios'!A:A,C135,'Análisis de Precios'!E:E) -> 0 | H135: 0
C136: 724 | D136: LLAVE DE UN PUNTO | E136: un. | F136: =SUMIF('Análisis de Precios'!A:A,C136,'Análisis de Precios'!E:E) -> 0 | H136: 0
C137: 725 | D137: LLAVE DE DOS PUNTOS Y TOMA | E137: un. | F137: =SUMIF('Análisis de Precios'!A:A,C137,'Análisis de Precios'!E:E) -> 0 | H137: 0
C138: 726 | D138: LLAVE DE UN PUNTO Y TOMA C/ NEUTRO | E138: un. | F138: =SUMIF('Análisis de Precios'!A:A,C138,'Análisis de Precios'!E:E) -> 0 | H138: 0
C139: 727 | D139: TOMA C/ NEUTRO | E139: un. | F139: =SUMIF('Análisis de Precios'!A:A,C139,'Análisis de Precios'!E:E) -> 0 | H139: 0
C140: 728 | D140: RECEPTACULO CURVO C/ROSETA | E140: un. | F140: =SUMIF('Análisis de Precios'!A:A,C140,'Análisis de Precios'!E:E) -> 0 | H140: 0
C141: 729 | D141: PORTALAMPARA DE COLGAR COMUN | E141: un. | F141: =SUMIF('Análisis de Precios'!A:A,C141,'Análisis de Precios'!E:E) -> 0 | H141: 0
C142: 730 | D142: FLORON DE UREA | E142: un. | F142: =SUMIF('Análisis de Precios'!A:A,C142,'Análisis de Precios'!E:E) -> 0 | H142: 0
C143: 731 | D143: tapa ciega pvc 10 x 10 | E143: un. | F143: =SUMIF('Análisis de Precios'!A:A,C143,'Análisis de Precios'!E:E) -> 0 | H143: 0
C144: 732 | D144: tapa ciega pvc 5 x 10 | E144: un. | F144: =SUMIF('Análisis de Precios'!A:A,C144,'Análisis de Precios'!E:E) -> 0 | H144: 0
C145: 733 | D145: ROSETA DE MADERA | E145: un. | F145: =SUMIF('Análisis de Precios'!A:A,C145,'Análisis de Precios'!E:E) -> 0 | H145: 0
C146: 734 | D146: TORNILLOS PARA ROSETA | E146: un. | F146: =SUMIF('Análisis de Precios'!A:A,C146,'Análisis de Precios'!E:E) -> 0 | H146: 0
C147: 735 | D147: caja metalica para medidor | E147: un. | F147: =SUMIF('Análisis de Precios'!A:A,C147,'Análisis de Precios'!E:E) -> 0 | H147: 0
C148: 736 | D148: caja metalica para termomagnetica bipolar | E148: un. | F148: =SUMIF('Análisis de Precios'!A:A,C148,'Análisis de Precios'!E:E) -> 0 | H148: 0
C149: 737 | D149: Cond. subterraneo 2x 6mm2 | E149: mts. | F149: =SUMIF('Análisis de Precios'!A:A,C149,'Análisis de Precios'!E:E) -> 0 | H149: 0
C150: 738 | D150: cable unipolar 1 x 6 MM | E150: mts. | F150: =SUMIF('Análisis de Precios'!A:A,C150,'Análisis de Precios'!E:E) -> 0 | H150: 0
A151: 8 | B151: PREMOLDEADOS | C151: 801 | D151: Camara de inspeccion premoldeada H° A° | E151: un. | F151: =SUMIF('Análisis de Precios'!A:A,C151,'Análisis de Precios'!E:E) -> 0 | H151: 0
C152: 802 | D152: PILETA PREMOLDEADA 48 x 54 CM | E152: un. | F152: =SUMIF('Análisis de Precios'!A:A,C152,'Análisis de Precios'!E:E) -> 0 | H152: 0
C153: 803 | D153: MESADA PREMOLDEADA DE HORMIGON ARMADO | E153: un. | F153: =SUMIF('Análisis de Precios'!A:A,C153,'Análisis de Precios'!E:E) -> 0 | H153: 0
A154: 9 | B154: TECHOS Y ESTRUCTURA | C154: 901 | D154: chapa de cinc ACANALADA nº 25 | E154: un. | F154: =SUMIF('Análisis de Precios'!A:A,C154,'Análisis de Precios'!E:E) -> 0 | H154: 0
C155: 902 | D155: Chapa de cinc Acanalada Nº 27 | E155: m² | F155: =SUMIF('Análisis de Precios'!A:A,C155,'Análisis de Precios'!E:E) -> 126.67 | G155: =11273.81/(1.08*3*$M$8) -> 2875.678502 | H155: 364262.1959
C156: 903 | D156: PLEGADO DE CHAPA F°G° TIPO CENEFA | E156: m² | F156: =SUMIF('Análisis de Precios'!A:A,C156,'Análisis de Precios'!E:E) -> 0 | H156: 0
C157: 904 | D157: chapa plegada de HºG° (cupertina ) | E157: m² | F157: =SUMIF('Análisis de Precios'!A:A,C157,'Análisis de Precios'!E:E) -> 0 | H157: 0
C158: 904.1 | D158: chapa plegada de HºG° (cupertina posterior tipo cumbrera ) | E158: m² | F158: =SUMIF('Análisis de Precios'!A:A,C158,'Análisis de Precios'!E:E) -> 0 | H158: 0
C159: 905 | D159: cumbrera de ch. de cinc nº27x 2m. L=33 | E159: m² | F159: =SUMIF('Análisis de Precios'!A:A,C159,'Análisis de Precios'!E:E) -> 0 | H159: 0
C160: 906 | D160: TORNILLOS PARKER 8 x 25 MM | E160: un. | F160: =SUMIF('Análisis de Precios'!A:A,C160,'Análisis de Precios'!E:E) -> 0 | H160: 0
C161: 907 | D161: tornillos parker 8 x 38 MM | E161: un. | F161: =SUMIF('Análisis de Precios'!A:A,C161,'Análisis de Precios'!E:E) -> 0 | H161: 0
C162: 908 | D162: tarugos fischer s8 | E162: un. | F162: =SUMIF('Análisis de Precios'!A:A,C162,'Análisis de Precios'!E:E) -> 0 | H162: 0
C163: 909 | D163: remaches pop 3,5 x 12 | E163: un. | F163: =SUMIF('Análisis de Precios'!A:A,C163,'Análisis de Precios'!E:E) -> 5 | H163: 0
C164: 910 | D164: metal desplegado liviano 2m x 0,75m | E164: un. | F164: =SUMIF('Análisis de Precios'!A:A,C164,'Análisis de Precios'!E:E) -> 0 | H164: 0
C165: 911 | D165: Aislamax membrana b/teja espuma simple 5mm 20m2 | E165: m² | F165: =SUMIF('Análisis de Precios'!A:A,C165,'Análisis de Precios'!E:E) -> 0 | H165: 0
C166: 912 | D166: Cumbrera C°G° N°30 des. 30cm | E166: ml | F166: =SUMIF('Análisis de Precios'!A:A,C166,'Análisis de Precios'!E:E) -> 0 | H166: 0
C167: 913 | D167: Babeta C°G° N°30 des. 25cm | E167: ml | F167: =SUMIF('Análisis de Precios'!A:A,C167,'Análisis de Precios'!E:E) -> 7.4 | G167: =930/$M$8 -> 768.5950413 | H167: 5687.603306
C168: 914 | D168: Cenefa C°G° N°30 des. 30cm | E168: ml | F168: =SUMIF('Análisis de Precios'!A:A,C168,'Análisis de Precios'!E:E) -> 16.6 | G168: =1900/$M$8 -> 1570.247934 | H168: 26066.1157
C169: 915 | D169: Canaleta C°G° N°25 des. 40cm | E169: ml | F169: =SUMIF('Análisis de Precios'!A:A,C169,'Análisis de Precios'!E:E) -> 7.4 | G169: =3430/$M$8 -> 2834.710744 | H169: 20976.8595
C170: 916 | D170: Soporte canaleta rectangular 15cm | E170: un. | F170: =SUMIF('Análisis de Precios'!A:A,C170,'Análisis de Precios'!E:E) -> 10 | G170: =600/$M$8 -> 495.8677686 | H170: 4958.677686
C171: 917 | D171: Embudo redondo Ø100mm | E171: un. | F171: =SUMIF('Análisis de Precios'!A:A,C171,'Análisis de Precios'!E:E) -> 2 | G171: =1200/$M$8 -> 991.7355372 | H171: 1983.471074
A172: 10 | B172: REVESTIMIENTOS | C172: 1001 | D172: revestimiento Cerámico | E172: m² | F172: =SUMIF('Análisis de Precios'!A:A,C172,'Análisis de Precios'!E:E) -> 0 | H172: 0
C173: 1002 | D173: Adhesivo para ceramica por 30 kls. | E173: bls. | F173: =SUMIF('Análisis de Precios'!A:A,C173,'Análisis de Precios'!E:E) -> 0.095 | G173: =3688/$M$8 -> 3047.933884 | H173: 289.553719
C174: 1003 | D174: Cemento Blanco | E174: Kg. | F174: =SUMIF('Análisis de Precios'!A:A,C174,'Análisis de Precios'!E:E) -> 0 | G174: =10390.59/(25*$M$8) -> 343.4905785 | H174: 0
C175: 1004 | D175: Porcelanato 60x60 pulido | E175: m² | F175: =SUMIF('Análisis de Precios'!A:A,C175,'Análisis de Precios'!E:E) -> 1 | G175: =4000/$M$8 -> 3305.785124 | H175: 3305.785124
A176: 11 | B176: INSTALACION SANITARIA | C176: 1101 | D176: caño PVC 3,2 40 mm | E176: mts. | F176: =SUMIF('Análisis de Precios'!A:A,C176,'Análisis de Precios'!E:E) -> 0 | H176: 0
C177: 1102 | D177: caño PVC 3,2 50 mm | E177: mts. | F177: =SUMIF('Análisis de Precios'!A:A,C177,'Análisis de Precios'!E:E) -> 0 | H177: 0
C178: 1103 | D178: caño PVC 3,2 60 mm | E178: mts. | F178: =SUMIF('Análisis de Precios'!A:A,C178,'Análisis de Precios'!E:E) -> 0 | H178: 0
C179: 1104 | D179: caño PVC 3,2 63 mm | E179: mts. | F179: =SUMIF('Análisis de Precios'!A:A,C179,'Análisis de Precios'!E:E) -> 0 | H179: 0
C180: 1105 | D180: caño PVC 3,2 110 mm | E180: mts. | F180: =SUMIF('Análisis de Precios'!A:A,C180,'Análisis de Precios'!E:E) -> 0 | H180: 0
C181: 1106 | D181: CAÑO PVC Ø 110 MM P/CLOACA C/ ARO | E181: mts. | F181: =SUMIF('Análisis de Precios'!A:A,C181,'Análisis de Precios'!E:E) -> 0 | H181: 0
C182: 1107 | D182: caño PVC Ø 60 mm x 2,2 | E182: mts | F182: =SUMIF('Análisis de Precios'!A:A,C182,'Análisis de Precios'!E:E) -> 0 | H182: 0
C183: 1108 | D183: codos PVC 40 mm M-H | E183: un. | F183: =SUMIF('Análisis de Precios'!A:A,C183,'Análisis de Precios'!E:E) -> 0 | H183: 0
C184: 1109 | D184: codos PVC 50 mm MH | E184: un. | F184: =SUMIF('Análisis de Precios'!A:A,C184,'Análisis de Precios'!E:E) -> 0 | H184: 0
C185: 1110 | D185: Codo c/acometidas PVC 110 mm | E185: un. | F185: =SUMIF('Análisis de Precios'!A:A,C185,'Análisis de Precios'!E:E) -> 0 | H185: 0
C186: 1111 | D186: codos PVC 63 mm MH | E186: un. | F186: =SUMIF('Análisis de Precios'!A:A,C186,'Análisis de Precios'!E:E) -> 0 | H186: 0
C187: 1112 | D187: curvas PVC 40 mm a 45° MH | E187: un. | F187: =SUMIF('Análisis de Precios'!A:A,C187,'Análisis de Precios'!E:E) -> 0 | H187: 0
C188: 1113 | D188: CURVA A 45° Ø 110 MM | E188: un. | F188: =SUMIF('Análisis de Precios'!A:A,C188,'Análisis de Precios'!E:E) -> 0 | H188: 0
C189: 1114 | D189: curva PVC 63 mm a 45° MH | E189: un. | F189: =SUMIF('Análisis de Precios'!A:A,C189,'Análisis de Precios'!E:E) -> 0 | H189: 0
C190: 1115 | D190: sombrete p/ ventilacion Ø 63 | E190: un. | F190: =SUMIF('Análisis de Precios'!A:A,C190,'Análisis de Precios'!E:E) -> 0 | H190: 0
C191: 1116 | D191: Codo PVC 110 3,2 mm M-H | E191: un. | F191: =SUMIF('Análisis de Precios'!A:A,C191,'Análisis de Precios'!E:E) -> 0 | H191: 0
C192: 1117 | D192: Pileta de patio 10x10 . | E192: un. | F192: =SUMIF('Análisis de Precios'!A:A,C192,'Análisis de Precios'!E:E) -> 0 | H192: 0 | L192: =1265/25 -> 50.6
C193: 1118 | D193: Receptaculo de ducha macho | E193: un. | F193: =SUMIF('Análisis de Precios'!A:A,C193,'Análisis de Precios'!E:E) -> 0 | H193: 0
C194: 1119 | D194: Caño PPN 13 mm | E194: mts. | F194: =SUMIF('Análisis de Precios'!A:A,C194,'Análisis de Precios'!E:E) -> 0 | H194: 0
C195: 1120 | D195: Caño PPN 19 mm | E195: mts. | F195: =SUMIF('Análisis de Precios'!A:A,C195,'Análisis de Precios'!E:E) -> 0 | H195: 0
C196: 1121 | D196: CAÑO PPN 25 MM | E196: mts. | F196: =SUMIF('Análisis de Precios'!A:A,C196,'Análisis de Precios'!E:E) -> 0 | H196: 0
C197: 1123 | D197: Codo PPN 13 mm | E197: un. | F197: =SUMIF('Análisis de Precios'!A:A,C197,'Análisis de Precios'!E:E) -> 0 | H197: 0
C198: 1124 | D198: Codo PPN 19 mm | E198: un. | F198: =SUMIF('Análisis de Precios'!A:A,C198,'Análisis de Precios'!E:E) -> 0 | H198: 0
C199: 1125 | D199: Codo PPN 19 mm x 13mm | E199: un. | F199: =SUMIF('Análisis de Precios'!A:A,C199,'Análisis de Precios'!E:E) -> 0 | H199: 0
C200: 1126 | D200: CUPLA PPN 13 mm | E200: un. | F200: =SUMIF('Análisis de Precios'!A:A,C200,'Análisis de Precios'!E:E) -> 0 | H200: 0
C201: 1127 | D201: Cupla de PPN 19 mm | E201: un. | F201: =SUMIF('Análisis de Precios'!A:A,C201,'Análisis de Precios'!E:E) -> 0 | H201: 0
C202: 1128 | D202: Tapon PPN 13mm | E202: un. | F202: =SUMIF('Análisis de Precios'!A:A,C202,'Análisis de Precios'!E:E) -> 0 | H202: 0
C203: 1129 | D203: Tapon PPN 19mm | E203: un. | F203: =SUMIF('Análisis de Precios'!A:A,C203,'Análisis de Precios'!E:E) -> 0 | H203: 0
C204: 1130 | D204: asfalcreep | E204: rollo | F204: =SUMIF('Análisis de Precios'!A:A,C204,'Análisis de Precios'!E:E) -> 0 | H204: 0
... 135 more rows
